Workbook

Sheet HIPHUD
A2: BIA / HIP | C2: Provides a grant to individuals to obtain standard housing.
C3: 1 | D3: Serves the lowest income population strata, only applicants at or below 150% poverty level. Very narrowly
D4: focused.
C5: 2 | D5: HIP Program provides a grant to individuals which provides Standard housing to recipeints, through
D6: either financing the repair of an existing home or the purchase or construction of a new house.
C7: 3 | D7: Serves individuals who can not qualify for needed financiing due to extremely low income.
C8: 4 | D8: Serves individuals who can qualify for needed financiing due to very low income and can obtain financing.
A10: HUD / NAHASDA | C10: Provides grants to TDHE's , to promote Housing and Community Development
C11: 1 | D11: Serves broad income range, up to 10% of projects are not income restricted, funds can be used for
D12: housholds with annual incomes above the local median income, the remainder of the funds must be used
D13: for families earning less than 80% of median local income.
C14: 2 | D14: No regulation in NAHASDA requires that repairs provided to a housing unit bring the entire house to uniform standard condition.
C15: 3 | D15: There is no provision to grant an individual new housing, all existing homeownership programs require ability for mortgage payment.
C16: 4 | D16: HUD encourages leverage and/or repayment provisions.
A19: HUD /ICDGB | C19: Provides grants to Tribes, TDHE's, and other eligible organizations, to undertake community development projects,
C20: including development of affordable Housing, and home repair projects.
C21: 1 | D21: Is a competitive Grant, funding is irregular and intermittent …. Funds awarded only to highest rated applicant organizations. Focus on Community development, rather than individual assistance. Funding does not support a continous housing assistance pr
C22: 2 | D22: Regulation does not requires that repairs provided to a housing unit bring the entire house to uniform standard condition.
C23: 3 | D23: There is no provision to grant an individual new housing.
C24: 4 | D24: HUD encourages leverage of federal, state and local funds.
A26: HUD / 184 | C26: Provides Guarentee authority for loans to qualified Individuals for home improvements and home purchase.
C27: 1 | D27: Serves only individuals in mid to higher income range, with acceptable credit rating.
A29: USDA / RHS | C29: Provides low interest Loans and Grants to low income individuals for home repairs.
C30: 1 | D30: 504 Loan / Grant serves individuals who can qualify for the loan.. 62 years and older may also qualify for the grant. Requires loan repayment
C31: 2 | D31: Maximum loan limit -$20,000 Maximum Grant limit - $7,500
C32: 3 | D32: Does not require that the entire house be made standard

Sheet Appropriations
A1: Office of Indian Services
A2: Housing Improvement Program
A3: In Thousands of Dollars
A4: Fiscal Year | B4: 2002 | C4: 2003 | D4: 2004 | E4: 2005 | F4: 2006 | G4: 2007 | H4: 2008 | I4: 2009 | J4: 2010 | K4: 2011 | L4: 2012 | M4: 2013 | N4: 2014 | O4: 2015 | P4: 2016 | Q4: 2017
A5: Annual Appropriation | B5: 19634 | C5: 19493 | D5: 22901 | E5: 23020 | F5: 22216 | G5: 18716 | H5: 13800 | I5: 13600 | J5: 12600 | K5: 12620 | L5: 12619 | M5: 8000 | N5: 8009 | O5: 8009 | P5: 8021 | Q5: 8021

Sheet Milestone (hidden)
A1: Workload Data | C1: Greenbook Targets | D1: Percent of Eligible Households Served | F1: Greenbook Targets | G1: Percent of Eligible Households Served | I1: Greenbook Targets | J1: Percent of Eligible Households Served | L1: Greenbook Targets | M1: Percent of Eligible Households Served | O1: Greenbook Targets | P1: Percent of Eligible Households Served
A2: Targets | B2: FY2004 | E2: FY2005 | H2: FY 2006 | K2: FY 2007 | N2: FY 2008
C3: Estimate | D3: Actual | F3: Estimate | G3: Actual | I3: Estimate | J3: Actual | L3: Estimate | M3: Actual | O3: Estimate | P3: Actual
A4: Renovations | C4: 132 | D4: 104 | F4: 132 | G4: 132 | I4: 132 | J4: 86 | L4: =SUM(C4+F4+I4)/4.25 -> 93.17647059 | M4: 138 | O4: =SUM(F4+I4+L4)/4.25 -> 84.04152249 | P4: 68
A5: New /Replacement | C5: 298 | D5: 189 | F5: 298 | G5: 182 | I5: 298 | J5: 162 | L5: =SUM(C5+F5+I5)/4.25 -> 210.3529412 | M5: 195 | O5: =SUM(F5+I5+L5)/4.25 -> 189.7301038 | P5: 121
A6: Total Households Served | B6: Total | C6: 430 | D6: =SUM(C31:D31) -> 293 | E6: Total | F6: 430 | G6: =SUM(G4:G5) -> 314 | H6: Total | I6: 430 | J6: =SUM(J4:J5) -> 248 | K6: Total | L6: =SUM(L4:L5) -> 303.5294118 | M6: =SUM(M4:M5) -> 333 | N6: Total | O6: =SUM(O4:O5) -> 273.7716263 | P6: =SUM(P4:P5) -> 189
A8: Percentage Targets
A9: Renovations | B9: 2309 | C9: =C4/B9 -> 0.05716760502 | D9: =D4/B9 -> 0.04504114335 | E9: 2904 | F9: 0.04545454545 | G9: =G4/E9 -> 0.04545454545 | H9: 2649 | I9: =I4/H9 -> 0.04983012458 | J9: =J4/H9 -> 0.03246508116 | K9: =SUM(E9+H9)/1.5 -> 3702 | L9: =L4/K9 -> 0.0251692249 | M9: =M4/K9 -> 0.03727714749 | N9: =SUM(H9+K9)/1.5 -> 4234 | O9: =O4/N9 -> 0.01984920229 | P9: =P4/N9 -> 0.01606046292
A10: New Construction | B10: 3520 | C10: =C5/B10 -> 0.08465909091 | D10: =D5/B10 -> 0.05369318182 | E10: 4055 | F10: 0.07348951911 | G10: =G5/E10 -> 0.04488286067 | H10: 4459 | I10: =I5/H10 -> 0.06683112806 | J10: =J5/H10 -> 0.03633101592 | K10: =SUM(E10+H10)/1.5 -> 5676 | L10: =L5/K10 -> 0.03706006716 | M10: =M5/K10 -> 0.0343551797 | N10: =SUM(H10+K10)/1.5 -> 6756.666667 | O10: =O5/N10 -> 0.02808042977 | P10: =P5/N10 -> 0.01790823878
A11: Total Households Served | B11: =SUM(B9:B10) -> 5829 | C11: =C6/B11 -> 0.07376908561 | D11: =D6/B11 -> 0.05026591182 | E11: 6959 | F11: 0.06179048714 | G11: =G6/E11 -> 0.04512142549 | H11: 7108 | I11: =I6/H11 -> 0.06049521666 | J11: =J6/H11 -> 0.03489026449 | K11: =SUM(E11+H11)/1.5 -> 9378 | L11: =L6/K11 -> 0.03236611343 | M11: =M6/K11 -> 0.03550863724 | N11: =SUM(H11+K11)/1.5 -> 10990.66667 | O11: =O6/N11 -> 0.02490946497 | P11: =P6/N11 -> 0.01719640907
B16: FY2004 | E16: FY2005 | H16: FY2006 | K16: FY2007 | N16: FY2008 | R16: 2004 Percent | T16: 2005 Percent | V16: 2006 Percent
A18: Region | B18: # of Eligible Households | C18: Number of Eligible Households Category B Served | D18: Number of Eligible Households Category C Served | E18: # of Eligible Households | F18: Number of Eligible Households Category B Served | G18: Number of Eligible Households Category C Served | H18: # of Eligible Households | I18: Number of Eligible Households Category B Served | J18: Number of Eligible Households Category C Served | K18: # of Eligible Households | L18: Number of Eligible Households Category B Served | M18: Number of Eligible Households Category C Served | N18: # of Eligible Households | O18: Number of Eligible Households Category B Served | P18: Number of Eligible Households Category C Served | R18: Number of Eligible Applicants Cat B | S18: Number of Eligible Applicants Cat C | T18: Number of Eligible Applicants Cat B | U18: Number of Eligible ApplicantsCat C | V18: Number of Eligible ApplicantsCat B | W18: Number of Eligible ApplicantsCat C
A19: ALASKA | B19: 806 | C19: 6 | D19: 31 | E19: 987 | F19: 16 | G19: 26 | H19: 1153 | I19: 16 | J19: 16 | K19: 668 | L19: 13 | M19: 26 | N19: 1090 | O19: 7 | P19: 16 | R19: 306 | S19: 500 | T19: 342 | U19: 645 | V19: 374 | W19: 779
A20: EASTERN OKLAHOMA | B20: 369 | C20: 13 | D20: 4 | E20: 683 | F20: 24 | G20: 6 | H20: 411 | I20: 11 | J20: 6 | K20: 346 | L20: 15 | M20: 5 | N20: 332 | O20: 8 | P20: 3 | R20: 26 | S20: 24 | T20: 44 | U20: 23 | V20: 355 | W20: 56
A21: EASTERN | B21: 50 | C21: 13 | D21: 2 | E21: 67 | F21: 19 | G21: 6 | H21: 76 | I21: 3 | J21: 2 | K21: 81 | L21: 3 | M21: 2 | N21: 75 | O21: 3 | P21: 1 | R21: 314 | S21: 55 | T21: 655 | U21: 28 | V21: 65 | W21: 11
A22: GREAT PLAINS | B22: 615 | C22: 11 | D22: 31 | E22: 779 | F22: 10 | G22: 28 | H22: 997 | I22: 11 | J22: 30 | K22: 813 | L22: 53 | M22: 30 | N22: 870 | O22: 10 | P22: 17 | R22: 229 | S22: 386 | T22: 270 | U22: 509 | V22: 315 | W22: 682
A23: MIDWEST | B23: 462 | C23: 9 | D23: 14 | E23: 250 | F23: 12 | G23: 12 | H23: 242 | I23: 3 | J23: 7 | K23: 317 | L23: 2 | M23: 7 | N23: 423 | O23: 0 | P23: 13 | R23: 136 | S23: 326 | T23: 133 | U23: 117 | V23: 83 | W23: 159
A24: NAVAJO | B24: 633 | C24: 2 | D24: 38 | E24: 1022 | F24: 2 | G24: 31 | H24: 778 | I24: 0 | J24: 36 | K24: 626 | L24: 0 | M24: 35 | N24: 684 | O24: 1 | P24: 18 | R24: 19 | S24: 614 | T24: 21 | U24: 1001 | V24: 11 | W24: 767
A25: NORTHWEST | B25: 148 | C25: 1 | D25: 3 | E25: 144 | F25: 1 | G25: 3 | H25: 160 | I25: 4 | J25: 3 | K25: 172 | L25: 3 | M25: 3 | N25: 172 | O25: 5 | P25: 1 | R25: 85 | S25: 63 | T25: 90 | U25: 54 | V25: 90 | W25: 70
A26: PACIFIC | B26: 477 | C26: 4 | D26: 10 | E26: 606 | F26: 4 | G26: 10 | H26: 702 | I26: 6 | J26: 22 | K26: 579 | L26: 4 | M26: 23 | N26: 711 | O26: 6 | P26: 12 | R26: 100 | S26: 377 | T26: 88 | U26: 518 | V26: 93 | W26: 609
A27: ROCKY MOUNTAIN | B27: 437 | C27: 22 | D27: 6 | E27: 581 | F27: 14 | G27: 10 | H27: 653 | I27: 15 | J27: 6 | K27: 750 | L27: 13 | M27: 10 | N27: 341 | O27: 10 | P27: 3 | R27: 137 | S27: 300 | T27: 417 | U27: 164 | V27: 466 | W27: 187
A28: SOUTHERN PLAINS | B28: 541 | C28: 12 | D28: 16 | E28: 486 | F28: 12 | G28: 16 | H28: 548 | I28: 19 | J28: 7 | K28: 576 | L28: 16 | M28: 9 | N28: 597 | O28: 2 | P28: 9 | R28: 449 | S28: 92 | T28: 391 | U28: 95 | V28: 414 | W28: 134
A29: SOUTHWEST | B29: 404 | C29: 5 | D29: 12 | E29: 365 | F29: 5 | G29: 12 | H29: 396 | I29: 1 | J29: 13 | K29: 376 | L29: 1 | M29: 13 | N29: 337 | O29: 2 | P29: 6 | R29: 182 | S29: 222 | T29: 151 | U29: 214 | V29: 137 | W29: 259
A30: WESTERN | B30: 887 | C30: 6 | D30: 22 | E30: 989 | F30: 13 | G30: 22 | H30: 992 | I30: 13 | J30: 30 | K30: 995 | L30: 15 | M30: 32 | N30: 892 | O30: 14 | P30: 22 | R30: 326 | S30: 561 | T30: 302 | U30: 687 | V30: 246 | W30: 746
A31: TOTAL | B31: 5829 | C31: 104 | D31: 189 | E31: 6959 | F31: 132 | G31: 182 | H31: 7108 | I31: =SUM(I20:I30) -> 86 | J31: =SUM(J20:J30) -> 162 | K31: =SUM(K19:K30) -> 6299 | L31: 138 | M31: 195 | N31: 6524 | O31: 68 | P31: 121 | R31: =SUM(R19:R30) -> 2309 | S31: =SUM(S19:S30) -> 3520 | T31: 2904 | U31: 4055 | V31: 2649 | W31: 4459
C32: Total Served | D32: 293 | F32: Total Served | G32: 314 | I32: Total Served | J32: =I31+J31 -> 248 | M32: =L31+M31 -> 333 | P32: =O31+P31 -> 189 | S32: =SUM(R31:S31) -> 5829 | U32: =SUM(T31:U31) -> 6959 | W32: =SUM(V31:W31) -> 7108
A37: Region | B37: 93-638 | C37: OSG | D37: Subtotal | E37: Total | F37: Cat B | G37: Cat C-1 | H37: Cat C-2 | I37: Total
A38: ALASKA | B38: 2606911 | C38: 2072450 | D38: =SUM(B38:C38) -> 4679361 | E38: 4679361.188 | F38: 13 | G38: 19 | H38: 7 | I38: =SUM(F38:H38) -> 39
A39: EASTERN OKLAHOMA | B39: 266959 | C39: 640000 | D39: 906959 | E39: 906958.5688 | F39: 15 | G39: 5 | H39: 0 | I39: 20
A40: EASTERN | B40: 170813 | C40: 0 | D40: 170813 | E40: 170812.9451 | F40: 3 | G40: 2 | H40: 0 | I40: 5
A41: GREAT PLAINS | B41: 2972305 | C41: 0 | D41: 2972305 | E41: 2972305.479 | F41: 13 | G41: 12 | H41: 18 | I41: 43
A42: MIDWEST | B42: 533304 | C42: 194060 | D42: 727364 | E42: 727364.2344 | F42: 2 | G42: 3 | H42: 4 | I42: 9
A43: NAVAJO | B43: 2703129 | C43: 0 | D43: 2703129 | E43: 2703129.043 | F43: 0 | G43: 23 | H43: 12 | I43: 35
A44: NORTHWEST | B44: 434811 | C44: 0 | D44: 434811 | E44: 434810.7697 | F44: 3 | G44: 2 | H44: 1 | I44: 6
A45: PACIFIC | B45: 1956129 | C45: 585000 | D45: 2541129 | E45: 2541128.658 | F45: 4 | G45: 12 | H45: 11 | I45: 27
A46: ROCKY MOUNTAIN | B46: 1409200 | C46: 183609 | D46: 1592809 | E46: 1592808.69 | F46: 13 | G46: 8 | H46: 2 | I46: 23
A47: SOUTHERN PLAINS | B47: 1274935 | C47: 0 | D47: 1274935 | E47: 1274935.194 | F47: 16 | G47: 5 | H47: 4 | I47: 25
A48: SOUTHWEST | B48: 1159690 | C48: 0 | D48: 1159690 | E48: 1159690.236 | F48: 1 | G48: 10 | H48: 3 | I48: 14
A49: WESTERN | B49: 2903344 | C49: 150000 | D49: 3053344 | E49: 3053343.994 | F49: 15 | G49: 12 | H49: 20 | I49: 47
A50: TOTAL | B50: =SUM(B38:B49) -> 18391530 | C50: =SUM(C38:C49) -> 3825119 | D50: 22216649 | E50: =SUM(E38:E49) -> 22216649 | F50: =SUM(F38:F49) -> 98 | G50: =SUM(G38:G49) -> 113 | H50: =SUM(H38:H49) -> 82 | I50: 293
D52: OSG
A53: Available BIA HIP | B53: 18326535 | D53: Available | E53: =B54 -> 3890114
A54: Available OSG HIP | B54: 3890114 | D54: Obligated | E54: =C50 -> 3825119
A55: Total Amount Available | B55: =SUM(B53:B54) -> 22216649 | D55: Balance | E55: =E53-E54 -> 64995

Sheet 2004 (hidden)
B1: # of Eligible Cat B | C1: # of Eligible Cat C-1 | D1: # of Eligible Cat C-2 | E1: Total # Cat C | F1: # of Eligible Applicants | G1: Cost of Cat B Need | H1: Total Cost Estimate of Need | I1: AMT AVAILABLE FOR DISTR. W/in REGION | J1: 35000
A2: ALASKA | B2: 306 | C2: 309 | D2: 191 | E2: 500 | F2: 806 | G2: =B2*43750 -> 13387500 | H2: 138216871 | I2: 4148068
A3: EASTERN OKLAHOMA | B3: 314 | C3: 53 | D3: 2 | E3: 55 | F3: 369 | G3: =B3*$J$1 -> 10990000 | H3: 17553346 | I3: 1050583
A4: EASTERN | B4: 26 | C4: 20 | D4: 4 | E4: 24 | F4: 50 | G4: =B4*$J$1 -> 910000 | H4: 4381323 | I4: 179520
A5: GREAT PLAINS | B5: 229 | C5: 313 | D5: 73 | E5: 386 | F5: 615 | G5: 8015000 | H5: 59523260 | I5: 2312622
A6: MIDWEST | B6: 136 | C6: 77 | D6: 246 | E6: 323 | F6: 462 | G6: 4760000 | H6: 51284576 | I6: 1850929
A7: NAVAJO | B7: 19 | C7: 137 | D7: 477 | E7: 614 | F7: 633 | G7: 665000 | H7: 86627456 | I7: 2850929
A8: NORTHWEST | B8: 85 | C8: 57 | D8: 6 | E8: 63 | F8: 148 | G8: 2975000 | H8: 12256523 | I8: 518164
A9: PACIFIC | B9: 100 | C9: 163 | D9: 214 | E9: 377 | F9: 477 | G9: 3500000 | H9: 66478078 | I9: 2170590
A10: ROCKY MOUNTAIN | B10: 276 | C10: 137 | D10: 24 | E10: 161 | F10: 437 | G10: 9660000 | H10: 31342228 | I10: 1440030
A11: SOUTHERN PLAINS | B11: 449 | C11: 58 | D11: 34 | E11: 92 | F11: 541 | G11: 15715000 | H11: 26649958 | I11: 1557256
A12: SOUTHWEST | B12: 182 | C12: 128 | D12: 94 | E12: 222 | F12: 404 | G12: 6370000 | H12: 35994992 | I12: 1461542
A13: WESTERN | B13: 326 | C13: 128 | D13: 433 | E13: 561 | F13: 887 | G13: 11410000 | H13: 86763301 | I13: 3352406
A14: TOTAL | B14: 2448 | C14: 1580 | D14: 1798 | E14: 3378 | F14: 5829 | G14: =SUM(G2:G13) -> 88357500 | H14: 617071912 | I14: 22892639
A15: TOTAL AMOUNT AVAILABLE THIS FY: | I15: =SUM(I16:I17) -> 22900903
A16: Available from BIA HIP: | I16: 18948499
A17: Available from BIA OSG: | I17: 3952404

Sheet 2005 (hidden)
B1: # of Eligible Cat B | C1: # of Eligible Cat C-1 | D1: # of Eligible Cat C-2 | E1: Total # Cat C | F1: # of Eligible Applicants | G1: Cost of Cat B Need | H1: Total Cost Estimate of Need | I1: AMT AVAILABLE FOR DISTR. W/in REGION | J1: 35000
A2: ALASKA | B2: 342 | C2: 358 | D2: 287 | E2: 645 | F2: 987 | G2: =B2*43750 -> 14962500 | H2: 175542016 | I2: 4345306.331
A3: EASTERN OKLAHOMA | B3: 655 | C3: 27 | D3: 1 | E3: 28 | F3: 683 | G3: =B3*$J$1 -> 22925000 | H3: 26178989 | I3: 1534264.543
A4: EASTERN | B4: 44 | C4: 18 | D4: 5 | E4: 23 | F4: 67 | G4: =B4*$J$1 -> 1540000 | H4: 4936199 | I4: 187102.6218
A5: GREAT PLAINS | B5: 270 | C5: 309 | D5: 200 | E5: 509 | F5: 779 | G5: 9450000 | H5: 77535261 | I5: 2486697.667
A6: MIDWEST | B6: 133 | C6: 76 | D6: 41 | E6: 117 | F6: 250 | G6: 4655000 | H6: 21058586 | I6: 738940.9465
A7: NAVAJO | B7: 21 | C7: 438 | D7: 563 | E7: 1001 | F7: 1022 | G7: 735000 | H7: 140879004 | I7: 3867524.187
A8: NORTHWEST | B8: 90 | C8: 46 | D8: 8 | E8: 54 | F8: 144 | G8: 3150000 | H8: 11169575 | I8: 410791.7605
A9: PACIFIC | B9: 88 | C9: 164 | D9: 354 | E9: 518 | F9: 606 | G9: 3080000 | H9: 89340364 | I9: 2382983.76
A10: ROCKY MOUNTAIN | B10: 417 | C10: 130 | D10: 34 | E10: 164 | F10: 581 | G10: 14595000 | H10: 36657613 | I10: 1527487.581
A11: SOUTHERN PLAINS | B11: 391 | C11: 68 | D11: 27 | E11: 95 | F11: 486 | G11: 13685000 | H11: 24936335 | I11: 1189217.331
A12: SOUTHWEST | B12: 151 | C12: 190 | D12: 24 | E12: 214 | F12: 365 | G12: 5285000 | H12: 33644094 | I12: 1123647.347
A13: WESTERN | B13: 302 | C13: 129 | D13: 558 | E13: 687 | F13: 989 | G13: 10570000 | H13: 102950297 | I13: 3226800.924
A14: TOTAL | B14: 2904 | C14: 1953 | D14: 2102 | E14: 4055 | F14: 6959 | G14: =SUM(G2:G13) -> 104632500 | H14: 744828333 | I14: 23020765
A15: TOTAL AMOUNT AVAILABLE THIS FY: | B15: 35000 | I15: 23020765
A16: Available from BIA HIP: | I16: 19068361
A17: Available from BIA OSG: | I17: 3952404

Sheet 2006 (hidden)
B1: # of Eligible Cat B | C1: # of Eligible Cat C-1 | D1: # of Eligible Cat C-2 | E1: Total # Cat C | F1: # of Eligible Applicants | G1: Cost of Cat B Need | H1: Total Cost Estimate of Need | I1: AMT AVAILABLE FOR DISTR. W/in REGION | J1: 35000
A2: ALASKA | B2: 374 | C2: 446 | D2: 333 | E2: 779 | F2: 1153 | G2: =B2*43750 -> 16362500 | H2: 208500867 | I2: 4679361.188
A3: EASTERN OKLAHOMA | B3: 355 | C3: 55 | D3: 1 | E3: 56 | F3: 411 | G3: =B3*$J$1 -> 12425000 | H3: 19176616 | I3: 906958.5688
A4: EASTERN | B4: 65 | C4: 11 | D4: 0 | E4: 11 | F4: 76 | G4: =B4*$B$15 -> 2275000 | H4: 3770873 | I4: 170812.9451
A5: GREAT PLAINS | B5: 315 | C5: 258 | D5: 424 | E5: 682 | F5: 997 | G5: 11025000 | H5: 102473056 | I5: 2972305.479
A6: MIDWEST | B6: 83 | C6: 59 | D6: 100 | E6: 159 | F6: 242 | G6: 2905000 | H6: 25300752 | I6: 727364.2344
A7: NAVAJO | B7: 11 | C7: 363 | D7: 404 | E7: 767 | F7: 778 | G7: 385000 | H7: 107768068 | I7: 2703129.043
A8: NORTHWEST | B8: 89 | C8: 62 | D8: 8 | E8: 70 | F8: 160 | G8: 3115000 | H8: 13388002 | I8: 434810.7697
A9: PACIFIC | B9: 97 | C9: 202 | D9: 428 | E9: 630 | F9: 702 | G9: 3395000 | H9: 104635753 | I9: 2541128.658
A10: ROCKY MOUNTAIN | B10: 417 | C10: 130 | D10: 34 | E10: 164 | F10: 653 | G10: 14595000 | H10: 41469256 | I10: 1592808.69
A11: SOUTHERN PLAINS | B11: 414 | C11: 89 | D11: 45 | E11: 134 | F11: 548 | G11: 14490000 | H11: 30326334 | I11: 1274935.194
A12: SOUTHWEST | B12: 134 | C12: 172 | D12: 80 | E12: 252 | F12: 396 | G12: 4690000 | H12: 39188147 | I12: 1159690.236
A13: WESTERN | B13: 246 | C13: 164 | D13: 582 | E13: 746 | F13: 992 | G13: 8610000 | H13: 108911305 | I13: 3053343.994
A14: TOTAL | B14: 2600 | C14: 2011 | D14: 2439 | E14: 4450 | F14: 7108 | G14: =SUM(G2:G13) -> 94272500 | H14: 804909029 | I14: 22216649
A15: TOTAL AMOUNT AVAILABLE THIS FY: | B15: 35000 | I15: =SUM(I16+I17-I18) -> 22216649
A16: Available from BIA HIP: | I16: 18326535
A17: Available from BIA OSG: | I17: 3890114

Sheet 2007
B1: # of Eligible Cat B | C1: # of Eligible Cat C-1 | D1: # of Eligible Cat C-2 | E1: Total # Cat C | F1: # of Eligible Applicants | G1: Cost of Cat B Need | H1: Total Cost Estimate of Need | I1: AMT AVAILABLE FOR DISTR. W/in REGION | J1: 35000
A2: ALASKA | B2: 235 | C2: 272 | D2: 161 | E2: 433 | F2: 668 | G2: =B2*43750 -> 10281250 | H2: 117067863 | I2: 3289626.428
A3: EASTERN OKLAHOMA | B3: 71 | C3: 8 | D3: 2 | E3: 10 | F3: 346 | G3: =B3*$J$1 -> 2485000 | H3: 12719070 | I3: 858548.4772
A4: EASTERN | B4: 339 | C4: 7 | D4: 0 | E4: 7 | F4: 81 | G4: =B4*$J$1 -> 11865000 | H4: 3840110 | I4: 216206.1926
A5: GREAT PLAINS | B5: 260 | C5: 289 | D5: 264 | E5: 553 | F5: 813 | G5: 9100000 | H5: 83111242 | I5: 2956329.883
A6: MIDWEST | B6: 154 | C6: 128 | D6: 35 | E6: 163 | F6: 317 | G6: 5390000 | H6: 28414459 | I6: 1082291.929
A7: NAVAJO | B7: 2 | C7: 298 | D7: 326 | E7: 624 | F7: 626 | G7: 70000 | H7: 87432496 | I7: 2689824.805
A8: NORTHWEST | B8: 102 | C8: 54 | D8: 16 | E8: 70 | F8: 172 | G8: 3570000 | H8: 13823785 | I8: 559124.5559
A9: PACIFIC | B9: 61 | C9: 139 | D9: 379 | E9: 518 | F9: 579 | G9: 2135000 | H9: 88234061 | I9: 2617822.689
A10: ROCKY MOUNTAIN | B10: 589 | C10: 135 | D10: 26 | E10: 161 | F10: 750 | G10: 20615000 | H10: 42304624 | I10: 2120957.251
A11: SOUTHERN PLAINS | B11: 460 | C11: 80 | D11: 36 | E11: 116 | F11: 576 | G11: 16100000 | H11: 29766889 | I11: 1580855.323
A12: SOUTHWEST | B12: 123 | C12: 175 | D12: 78 | E12: 253 | F12: 376 | G12: 4305000 | H12: 37952969 | I12: 1358706.069
A13: WESTERN | B13: 242 | C13: 150 | D13: 603 | E13: 753 | F13: 995 | G13: 8470000 | H13: 109743642 | I13: 3759750.397
A14: TOTAL | B14: 2638 | C14: 1735 | D14: 1926 | E14: 3661 | F14: 6299 | G14: =B14*$B$15 -> 92330000 | H14: 654411210 | I14: 23090044
A15: TOTAL AMOUNT AVAILABLE THIS FY: | B15: 35000 | I15: =SUM(I16+I17) -> 23090044
A16: Available from BIA HIP: | I16: 18824000
A17: Available from BIA OSG: | I17: 4266044

Sheet 2008
B1: # of Eligible Cat B | C1: # of Eligible Cat C-1 | D1: # of Eligible Cat C-2 | E1: Total # Cat C | F1: # of Eligible Applicants | G1: Cost of Cat B Need | H1: Total Cost Estimate of Need | I1: AMT AVAILABLE FOR DISTR. W/in REGION | J1: 35000
A2: ALASKA | B2: 365 | C2: 500 | D2: 225 | E2: 725 | F2: 1090 | G2: =$B$2*43750 -> 15968750 | H2: 194743291 | I2: 2913515.698
A3: EASTERN OKLAHOMA | B3: 320 | C3: 12 | D3: 0 | E3: 12 | F3: 332 | G3: =B3*$J$1 -> 11200000 | H3: 12613857 | I3: 459568.1139
A4: EASTERN | B4: 43 | C4: 29 | D4: 3 | E4: 32 | F4: 75 | G4: =B4*$J$1 -> 1505000 | H4: 5740043 | I4: 130298.8494
A5: GREAT PLAINS | B5: 247 | C5: 387 | D5: 236 | E5: 623 | F5: 870 | G5: 8645000 | H5: 92029335 | I5: 1744572.365
A6: MIDWEST | B6: 191 | C6: 164 | D6: 68 | E6: 232 | F6: 423 | G6: 6685000 | H6: 39351037 | I6: 798805.1157
A7: NAVAJO | B7: 2 | C7: 126 | D7: 556 | E7: 682 | F7: 684 | G7: 70000 | H7: 95552728 | I7: 1584122.551
A8: NORTHWEST | B8: 102 | C8: 54 | D8: 16 | E8: 70 | F8: 172 | G8: 3570000 | H8: 13823785 | I8: 304864.6689
A9: PACIFIC | B9: 105 | C9: 164 | D9: 442 | E9: 606 | F9: 711 | G9: 3675000 | H9: 104798041 | I9: 1696797.588
A10: ROCKY MOUNTAIN | B10: 250 | C10: 83 | D10: 8 | E10: 91 | F10: 341 | G10: 8750000 | H10: 20981749 | I10: 545553.7706
A11: SOUTHERN PLAINS | B11: 470 | C11: 72 | D11: 31 | E11: 103 | F11: 597 | G11: 16450000 | H11: 29853424 | I11: 892089.7029
A12: SOUTHWEST | B12: 123 | C12: 175 | D12: 78 | E12: 253 | F12: 337 | G12: 4305000 | H12: 31406805 | I12: 636915.2933
A13: WESTERN | B13: 224 | C13: 137 | D13: 531 | E13: 668 | F13: 892 | G13: 7840000 | H13: 96998989 | I13: 1812896.283
A14: TOTAL | B14: 2442 | C14: 1903 | D14: 2194 | E14: 4097 | F14: 6524 | G14: =SUM(G2:G13) -> 88663750 | H14: 737893084 | I14: 13520000
I15: =SUM(I16+I18+I19) -> 13520000
I16: 13520000
I17: 0

Sheet 2009 (hidden)
B1: # of Eligible Cat B | C1: # of Eligible Cat C-1 | D1: # of Eligible Cat C-2 | E1: Total # Cat C | F1: # of Eligible Applicants | G1: Cost of Cat B Need | H1: Total Cost Estimate of Need | I1: AMT AVAILABLE FOR DISTR. W/in REGION | J1: 35000
A2: ALASKA | B2: 459 | E2: 797 | F2: 1256 | G2: 0.2389616442 | H2: 217965315 | I2: 2913515.698
A3: EASTERN OKLAHOMA | B3: 33 | E3: 2 | F3: 35 | G3: 0.003592929505 | H3: 1393656 | I3: 459568.1139
A4: EASTERN | B4: 37 | E4: 58 | F4: 95 | G4: 0.01293152605 | H4: 8635880 | I4: 130298.8494
A5: GREAT PLAINS | B5: 350 | E5: 677 | F5: 1027 | G5: 0.1459898549 | H5: 102812242 | I5: 1744572.365
A6: MIDWEST | B6: 153 | E6: 219 | F6: 372 | G6: 0.0522071912 | H6: 36212939 | I6: 798805.1157
A7: NAVAJO | B7: 0 | E7: 510 | F7: 510 | G7: 0.08582635646 | H7: 71402040 | I7: 1584122.551
A8: NORTHWEST | B8: 173 | E8: 79 | F8: 252 | G8: 0.0308277438 | H8: 17603572 | I8: 304864.6689
A9: PACIFIC | B9: 104 | E9: 607 | F9: 847 | G9: 0.144563928 | H9: 121674285 | I9: 1696797.588
A10: ROCKY MOUNTAIN | B10: 224 | E10: 139 | F10: 363 | G10: 0.04516214019 | H10: 26510791 | I10: 545553.7706
A11: SOUTHERN PLAINS | B11: 442 | E11: 162 | F11: 600 | G11: 0.06509617314 | H11: 29238628 | I11: 892089.7029
A12: SOUTHWEST | B12: 82 | E12: 201 | F12: 283 | G12: 0.04097439152 | H12: 29468830 | I12: 636915.2933
A13: WESTERN | B13: 105 | E13: 705 | F13: 890 | G13: 0.133866121 | H13: 100318461 | I13: 1812896.283
A14: TOTAL | B14: =SUM(B2:B13) -> 2162 | E14: =SUM(E2:E13) -> 4156 | F14: =SUM(F2:F13) -> 6530 | G14: 1 | H14: 763236639 | I14: 13520000
I15: =SUM(I16+I18+I19) -> 13520000
I16: 13520000
I17: 0

Sheet 2010
B1: # of Eligible Cat B | C1: # of Eligible Cat C-1 | D1: # of Eligible Cat C-2 | E1: Total # Cat C | F1: # of Eligible Applicants | G1: Cost of Cat B Need | H1: Total Cost Estimate of Need | I1: AMT AVAILABLE FOR DISTR. W/in REGION | J1: 35000
A2: ALASKA | B2: 474 | C2: 630 | D2: 257 | E2: =SUM(C2:D2) -> 887 | F2: 1361 | G2: 0.2389616442 | H2: 239427319 | I2: 2913515.698
A3: EASTERN OKLAHOMA | B3: 54 | C3: 11 | D3: 0 | E3: =SUM(C3:D3) -> 11 | F3: 65 | G3: 0.003592929505 | H3: 3226746 | I3: 459568.1139
A4: EASTERN | B4: 44 | C4: 18 | D4: 12 | E4: 30 | F4: 74 | G4: 0.01293152605 | H4: 5092291 | I4: 130298.8494
A5: GREAT PLAINS | B5: 258 | C5: 258 | D5: 763 | E5: 1021 | F5: 1279 | G5: 0.1459898549 | H5: 145810290 | I5: 1744572.365
A6: MIDWEST | B6: 93 | C6: 47 | D6: 24 | E6: 71 | F6: 164 | G6: 0.0522071912 | H6: 13414740 | I6: 798805.1157
A7: NAVAJO | B7: 0 | C7: 287 | D7: 297 | E7: 584 | F7: 583 | G7: 0.08582635646 | H7: 81762336 | I7: 1584122.551
A8: NORTHWEST | B8: 231 | C8: 73 | D8: 32 | E8: 105 | F8: 336 | G8: 0.0308277438 | H8: 23408606 | I8: 304864.6689
A9: PACIFIC | B9: 126 | C9: 220 | D9: 499 | E9: 719 | F9: 845 | G9: 0.144563928 | H9: 121802512 | I9: 1696797.588
A10: ROCKY MOUNTAIN | B10: 264 | C10: 226 | D10: 19 | E10: 245 | F10: 509 | G10: 0.04516214019 | H10: 48146348 | I10: 545553.7706
A11: SOUTHERN PLAINS | B11: 413 | C11: 138 | D11: 16 | E11: 154 | F11: 567 | G11: 0.06509617314 | H11: 32496205 | I11: 892089.7029
A12: SOUTHWEST | B12: 57 | C12: 103 | D12: 68 | E12: 171 | F12: 228 | G12: 0.04097439152 | H12: 24511942 | I12: 636915.2933
A13: WESTERN | B13: 289 | C13: 92 | D13: 592 | E13: 684 | F13: 973 | G13: 0.133866121 | H13: 99287714 | I13: 1812896.283
A14: TOTAL | B14: =SUM(B2:B13) -> 2303 | C14: =SUM(C2:C13) -> 2103 | D14: =SUM(D2:D13) -> 2579 | E14: =SUM(E2:E13) -> 4682 | F14: =SUM(F2:F13) -> 6984 | G14: 1 | H14: 838387049 | I14: 13520000
A15: TOTAL AMOUNT AVAILABLE THIS FY: | B15: 13520000 | I15: 13520000
I16: 13520000
I17: 0

Sheet 2011
A1: Item | B1: # of Eligible Cat B | C1: # of Eligible Cat C-1 | D1: # of Eligible Cat C-2 | E1: Total # Cat C | F1: # of Eligible Applicants | G1: Cost of Cat B Need | H1: Total Cost Estimate of Need | I1: AMT AVAILABLE FOR DISTR. W/in REGION | J1: 35000
A2: ALASKA | B2: 477 | C2: 665 | D2: 309 | E2: =SUM(C2:D2) -> 974 | F2: 1451 | G2: =B2*43750 -> 20868750 | H2: 261418632 | I2: 2913515.698
A3: EASTERN OKLAHOMA | B3: 141 | C3: 4 | D3: 0 | E3: =SUM(C3:D3) -> 4 | F3: 145 | G3: =B3*J$1 -> 4935000 | H3: 5179020 | I3: 459568.1139
A4: EASTERN | B4: 27 | C4: 37 | D4: 4 | E4: 41 | F4: 68 | G4: =B4*J$1 -> 945000 | H4: 10243571 | I4: 130298.8494
A5: GREAT PLAINS | B5: 366 | C5: 634 | D5: 90 | E5: 724 | F5: 1090 | G5: 12810000 | H5: 109761354 | I5: 1744572.365
A6: MIDWEST | B6: 218 | C6: 49 | D6: 37 | E6: 86 | F6: 304 | G6: 7630000 | H6: 27783626 | I6: 798805.1157
A7: NAVAJO | B7: 0 | C7: 350 | D7: 316 | E7: 666 | F7: 666 | G7: 0 | H7: 93242664 | I7: 1584122.551
A8: NORTHWEST | B8: 235 | C8: 77 | D8: 27 | E8: 104 | F8: 339 | G8: 8225000 | H8: 23421011 | I8: 304864.6689
A9: PACIFIC | B9: 147 | C9: 217 | D9: 431 | E9: 648 | F9: 795 | G9: 5145000 | H9: 172267790 | I9: 1696797.588
A10: ROCKY MOUNTAIN | B10: 510 | C10: 195 | D10: 23 | E10: 218 | F10: 728 | G10: 17850000 | H10: 47192944 | I10: 545553.7706
A11: SOUTHERN PLAINS | B11: 409 | C11: 134 | D11: 16 | E11: 150 | F11: 559 | G11: 14315000 | H11: 31893548 | I11: 892089.7029
A12: SOUTHWEST | B12: 58 | C12: 117 | D12: 76 | E12: 193 | F12: 251 | G12: 2030000 | H12: 27481850 | I12: 636915.2933
A13: WESTERN | B13: 222 | C13: 64 | D13: 643 | E13: 707 | F13: 929 | G13: 7770000 | H13: 153495146 | I13: 1812896.283
A14: TOTAL | B14: 2810 | C14: 2543 | D14: 1972 | E14: 4515 | F14: 7325 | G14: =SUM(G2:G13) -> 102523750 | H14: 963381156 | I14: 13520000
A15: TOTAL AMOUNT AVAILABLE THIS FY: | I15: 13520000
I16: 13520000
I17: 0

Sheet 2012
B1: # of Eligible Cat B | C1: # of Eligible Cat C-1 | D1: # of Eligible Cat C-2 | E1: Total # Cat C | F1: # of Eligible Applicants | G1: Cost of Cat B Need | H1: Total Cost Estimate of Need | I1: AMT AVAILABLE FOR DISTR. W/in REGION | J1: 35000
A2: ALASKA | B2: 536 | C2: 781 | D2: 335 | E2: =SUM(C2:D2) -> 1116 | F2: 1652 | G2: =B2*43750 -> 23450000 | H2: 265572685.5 | I2: 3305561.096
A3: EASTERN OKLAHOMA | B3: 78 | C3: 10 | D3: 17 | E3: =SUM(C3:D3) -> 27 | F3: 105 | G3: =B3*J$1 -> 2730000 | H3: 3395000 | I3: 174300.9221
A4: EASTERN | B4: 194 | C4: 0 | D4: 0 | E4: 0 | F4: 194 | G4: =B4*J$1 -> 6790000 | H4: 4710852.5 | I4: 116450.8642
A5: GREAT PLAINS | B5: 540 | C5: 647 | D5: 266 | E5: 913 | F5: 1453 | G5: 18900000 | H5: 114287656.5 | I5: 1989309.686
A6: MIDWEST | B6: 237 | C6: 44 | D6: 26 | E6: 70 | F6: 307 | G6: 8295000 | H6: 14261138 | I6: 344231.8667
A7: NAVAJO | B7: 0 | C7: 364 | D7: 329 | E7: 693 | F7: 693 | G7: 0 | H7: 87445165.5 | I7: 1202261.076
A8: NORTHWEST | B8: 50 | C8: 59 | D8: 8 | E8: 67 | F8: 117 | G8: 1750000 | H8: 10026689 | I8: 166525.8436
A9: PACIFIC | B9: 143 | C9: 253 | D9: 462 | E9: 715 | F9: 858 | G9: 5005000 | H9: 113772566.5 | I9: 1530895.415
A10: ROCKY MOUNTAIN | B10: 535 | C10: 203 | D10: 29 | E10: 232 | F10: 767 | G10: 18725000 | H10: 37036834 | I10: 870848.6736
A11: SOUTHERN PLAINS | B11: 409 | C11: 134 | D11: 16 | E11: 150 | F11: 559 | G11: 14315000 | H11: 22540621 | I11: 600422.1277
A12: SOUTHWEST | B12: 47 | C12: 59 | D12: 60 | E12: 119 | F12: 166 | G12: 1645000 | H12: 15124000.5 | I12: 243179.0301
A13: WESTERN | B13: 216 | C13: 98 | D13: 498 | E13: 596 | F13: 812 | G13: 7560000 | H13: 74338695.5 | I13: 1192286.398
A14: TOTAL | B14: 2985 | C14: 2652 | D14: 2046 | E14: 4698 | F14: 7683 | G14: =SUM(G2:G13) -> 109165000 | H14: 762511904.5 | I14: 11736273
A15: TOTAL AMOUNT AVAILABLE THIS FY: | I15: 11736273
I16: 13520000
I17: 0

Sheet 2012Data
A1: 2012 Estimated Total Need in # of applicants and Associated Cost
A2: Item | B2: # of Eligible Cat B | C2: # of Eligible Cat C | D2: # of Eligible Applicants | E2: Cost of Cat B Need | F2: Cost of Cat C Need | G2: Total Estimate of Need | H2: 2012 AMT AVAILABLE FOR DISTR. W/in REGION | I2: Percentage of Funding to Need
A3: ALASKA | B3: 536 | C3: 1116 | D3: 1652 | E3: 23450000 | F3: =G3-E3 -> 242122685.5 | G3: =(531145371)/2 -> 265572685.5 | H3: 3295555.359 | I3: =H3/H$15 -> 0.2816533917
A4: EASTERN OKLAHOMA | B4: 78 | C4: 27 | D4: 105 | E4: 2730000 | F4: =G4-E4 -> 665000 | G4: =(6790000)/2 -> 3395000 | H4: 173773.3235 | I4: =H4/H$15 -> 0.01485147134
A5: EASTERN | B5: 194 | C5: 0 | D5: 194 | E5: 6790000 | F5: -2079147.5 | G5: =(9421705)/2 -> 4710852.5 | H5: 116098.3744 | I5: 0.009922303634
A6: GREAT PLAINS | B6: 540 | C6: 913 | D6: 1453 | E6: 18900000 | F6: 95387656.5 | G6: =(228575313)/2 -> 114287656.5 | H6: 1983288.164 | I6: 0.1695009724
A7: MIDWEST | B7: 237 | C7: 70 | D7: 307 | E7: 8295000 | F7: 5966138 | G7: =(28522276)/2 -> 14261138 | H7: 343189.8973 | I7: 0.0293305947
A8: NAVAJO | B8: 0 | C8: 693 | D8: 693 | E8: 0 | F8: 87445165.5 | G8: =(174890331)/2 -> 87445165.5 | H8: 1198621.903 | I8: 0.1024397674
A9: NORTHWEST | B9: 50 | C9: 67 | D9: 117 | E9: 1750000 | F9: 8276689 | G9: =(20053378)/2 -> 10026689 | H9: 166021.7798 | I9: 0.01418898858
A10: PACIFIC | B10: 143 | C10: 715 | D10: 858 | E10: 5005000 | F10: 108767566.5 | G10: =(227545133)/2 -> 113772566.5 | H10: 1526261.486 | I10: 0.1304413603
A11: ROCKY MOUNTAIN | B11: 535 | C11: 232 | D11: 767 | E11: 18725000 | F11: 18311834 | G11: =(74073668)/2 -> 37036834 | H11: 868212.6665 | I11: 0.07420146699
A12: SOUTHERN PLAINS | B12: 409 | C12: 150 | D12: 559 | E12: 14315000 | F12: 8225621 | G12: =(45081242)/2 -> 22540621 | H12: 598604.6857 | I12: 0.05115952293
A13: SOUTHWEST | B13: 47 | C13: 119 | D13: 166 | E13: 1645000 | F13: 13479000.5 | G13: =(30248001)/2 -> 15124000.5 | H13: 242442.9416 | I13: 0.02072029426
A14: WESTERN | B14: 216 | C14: 596 | D14: 812 | E14: 7560000 | F14: 66778695.5 | G14: =(148677391)/2 -> 74338695.5 | H14: 1188677.418 | I14: 0.1015898657
A15: TOTAL | B15: 2985 | C15: 4698 | D15: 7683 | E15: 109165000 | F15: 653346904.5 | G15: =(1525023809)/2 -> 762511904.5 | H15: 11700748

Sheet Data (hidden)
A2: Item | B2: # of Eligible Cat B | C2: Total # Cat C | D2: # of Eligible Applicants | E2: Cost of Cat B Estimate Need | F2: Total Cat B & C Estimate of Need
A3: ALASKA | B3: 365 | C3: 725 | D3: 1090 | E3: 20868750 | F3: 261418632
A4: EASTERN OKLAHOMA | B4: 320 | C4: 12 | D4: 332 | E4: 4935000 | F4: 5179020
A5: EASTERN | B5: 43 | C5: 32 | D5: 75 | E5: 945000 | F5: 10243571
A6: GREAT PLAINS | B6: 247 | C6: 623 | D6: 870 | E6: 12810000 | F6: 109761354
A7: MIDWEST | B7: 191 | C7: 232 | D7: 423 | E7: 7630000 | F7: 27783626
A8: NAVAJO | B8: 2 | C8: 682 | D8: 684 | E8: 0 | F8: 93242664
A9: NORTHWEST | B9: 102 | C9: 70 | D9: 172 | E9: 8225000 | F9: 23421011
A10: PACIFIC | B10: 105 | C10: 606 | D10: 711 | E10: 5145000 | F10: 172267790
A11: ROCKY MOUNTAIN | B11: 250 | C11: 91 | D11: 341 | E11: 17850000 | F11: 47192944
A12: SOUTHERN PLAINS | B12: 470 | C12: 103 | D12: 597 | E12: 14315000 | F12: 31893548
A13: SOUTHWEST | B13: 123 | C13: 253 | D13: 337 | E13: 2030000 | F13: 27481850
A14: WESTERN | B14: 224 | C14: 668 | D14: 892 | E14: 7770000 | F14: 153495146
A15: TOTAL | B15: 2442 | C15: 4097 | D15: 6524 | E15: 102523750 | F15: 963381156

Sheet 2013Data
A1: 2013 Estimated Total Need in # of applicants and Associated Cost
A2: Item | B2: # of Eligible Cat B | C2: # of Eligible Cat C | D2: # of Eligible Applicants | E2: Cost of Cat B Need | F2: Cost of Cat C Need | G2: Total Estimate of Need | H2: 2013 AMT AVAILABLE FOR DISTR. W/in REGION | I2: Percentage of Funding to Need
A3: ALASKA | B3: 590 | C3: 1364 | D3: 1954 | E3: 25812500 | F3: 312682370 | G3: =SUM(E3:F3) -> 338494870 | H3: 3402980.737 | I3: =H3/G3 -> 0.01005327123
A4: EASTERN OKLAHOMA | B4: 198 | C4: 8 | D4: 206 | E4: 6930000 | F4: 785981 | G4: =SUM(E4:F4) -> 7715981 | H4: 164146.5205 | I4: =H4/G4 -> 0.02127357759
A5: EASTERN | B5: 74 | C5: 32 | D5: 106 | E5: 2590000 | F5: 4081703.5 | G5: 6671703.5 | H5: 105101.9815 | I5: 0.01575339514
A6: GREAT PLAINS | B6: 528 | C6: 1347 | D6: 1875 | E6: 18480000 | F6: 155541447 | G6: 174021447 | H6: 2309985.272 | I6: 0.01327414127
A7: MIDWEST | B7: 232 | C7: 103 | D7: 335 | E7: 8120000 | F7: 14109713 | G7: 22229713 | H7: 339780.3267 | I7: 0.01528496237
A8: NAVAJO | B8: 0 | C8: 702 | D8: 702 | E8: 0 | F8: 88580817 | G8: 88580817 | H8: 1038843.994 | I8: 0.01172764069
A9: NORTHWEST | B9: 89 | C9: 84 | D9: 173 | E9: 3115000 | F9: 11484556.5 | G9: 14599556.5 | H9: 199145.6094 | I9: 0.01364052459
A10: PACIFIC | B10: 131 | C10: 383 | D10: 514 | E10: 4585000 | F10: 58920925 | G10: 63505925 | H10: 737048.6757 | I10: 0.01160598284
A11: ROCKY MOUNTAIN | B11: 527 | C11: 84 | D11: 680 | E11: 18445000 | F11: 18020692 | G11: 36465692 | H11: 627331.1506 | I11: 0.01720332499
A12: SOUTHERN PLAINS | B12: 407 | C12: 153 | D12: 564 | E12: 14245000 | F12: 16117229 | G12: 30362229 | H12: 524482.595 | I12: 0.01727417954
A13: SOUTHWEST | B13: 47 | C13: 157 | D13: 166 | E13: 1645000 | F13: 14301500.5 | G13: 15946500.5 | H13: 207974.9848 | I13: 0.01304204548
A14: WESTERN | B14: 166 | C14: 835 | D14: 1001 | E14: 5810000 | F14: 76585683.52 | G14: 82395683.52 | H14: 1321983.152 | I14: 0.01604432533
A15: TOTAL | B15: =SUM(B3:B14) -> 2989 | C15: =SUM(C3:C14) -> 5252 | D15: =SUM(D3:D14) -> 8276 | E15: =SUM(E3:E14) -> 109777500 | F15: =SUM(F3:F14) -> 771212618 | G15: 880990118 | H15: 10978805 | I15: 0.01246189347

Sheet 2014Data
A1: 2014 Estimated Total Need in # of applicants and Associated Cost
A2: Item | B2: # of Eligible Cat B | C2: # of Eligible Cat C | D2: # of Eligible Applicants | E2: Cost of Cat B Need | F2: Cost of Cat C Need | G2: Total Estimate of Need | H2: 2014 AMT AVAILABLE FOR DISTR. W/in REGION | I2: Percentage of Funding to Need
A3: ALASKA | B3: 351 | C3: 759 | D3: 1110 | E3: 15356250 | F3: 174130840.5 | G3: =SUM(E3:F3) -> 189487090.5 | H3: 1566302.85 | I3: =H3/G3 -> 0.008266013509
A4: EASTERN OKLAHOMA | B4: 93 | C4: 13 | D4: 106 | E4: 3255000 | F4: 1275536 | G4: =SUM(E4:F4) -> 4530536 | H4: 71358.13202 | I4: =H4/G4 -> 0.01575048339
A5: EASTERN | B5: 157 | C5: 8 | D5: 165 | E5: 5495000 | F5: 1148812 | G5: 6643812 | H5: 107708.517 | I5: 0.01621185503
A6: GREAT PLAINS | B6: 488 | C6: 1169 | D6: 1657 | E6: 17080000 | F6: 135041367.5 | G6: 152121367.5 | H6: 1646702.304 | I6: 0.01082492441
A7: MIDWEST | B7: 167 | C7: 93 | D7: 260 | E7: 5845000 | F7: 12848555 | G7: 18693555 | H7: 221824.5056 | I7: 0.0118663628
A8: NAVAJO | B8: 0 | C8: 802 | D8: 802 | E8: 0 | F8: 101199167 | G8: 101199167 | H8: 968525.5295 | I8: 0.009570489148
A9: NORTHWEST | B9: 56 | C9: 51 | D9: 107 | E9: 1960000 | F9: 6877949 | G9: 8837949 | H9: 98687.21903 | I9: 0.01116630329
A10: PACIFIC | B10: 172 | C10: 438 | D10: 610 | E10: 6020000 | F10: 68146402 | G10: 74166402 | H10: 705199.4166 | I10: 0.009508340671
A11: ROCKY MOUNTAIN | B11: 555 | C11: 173 | D11: 728 | E11: 19425000 | F11: 20811953 | G11: 40236953 | H11: 547351.5487 | I11: 0.01360320571
A12: SOUTHERN PLAINS | B12: 390 | C12: 148 | D12: 538 | E12: 13650000 | F12: 15180486 | G12: 28830486 | H12: 401510.4423 | I12: 0.01392659292
A13: SOUTHWEST | B13: 25 | C13: 161 | D13: 186 | E13: 875000 | F13: 19266287.5 | G13: 20141287.5 | H13: 204246.258 | I13: 0.01014067537
A14: WESTERN | B14: 90 | C14: 742 | D14: 832 | E14: 3150000 | F14: 87216323 | G14: 90366323 | H14: 917155.2772 | I14: 0.01014930393
A15: TOTAL | B15: =SUM(B3:B14) -> 2544 | C15: 4557 | D15: =SUM(D3:D14) -> 7101 | E15: =SUM(E3:E14) -> 92111250 | F15: =SUM(F3:F14) -> 643143678.5 | G15: 735254928.5 | H15: 7456572 | I15: 0.01014147843

Sheet 2015Data
A1: 2015 Estimated Total Need in # of Applicants and Associated Cost
A2: Item | B2: # of Eligible Cat B | C2: # of Eligible Cat C-1 | D2: # of Eligible Cat C-2 | E2: # of Eligible Applicants | F2: Cost of Cat B Need | G2: Cost of Cat C Need | H2: Total Estimate of Need | I2: 2015 AMT AVAILABLE FOR DISTR. W/in REGION | J2: Percentage of Funding to Need
A3: ALASKA | B3: 273 | C3: 312 | D3: 227 | E3: 812 | F3: 11943750 | G3: 135860244.5 | H3: =SUM(F3:G3) -> 147803994.5 | I3: 1136437.532 | J3: =I3/H3 -> 0.007688814746
A4: EASTERN OKLAHOMA | B4: 64 | C4: 5 | D4: 0 | E4: 69 | F4: 2240000 | G4: 559295.5 | H4: =SUM(F4:G4) -> 2799295.5 | I4: 43266.03827 | J4: =I4/H4 -> 0.01545604538
A5: EASTERN | B5: 129 | C5: 16 | D5: 16 | E5: 161 | F5: 4515000 | G5: 4094995 | H5: =SUM(F5:G5) -> 8609995 | I5: 113462.3346 | J5: 0.01317797915
A6: GREAT PLAINS | B6: 612 | C6: 1128 | D6: 409 | E6: 2149 | F6: 21420000 | G6: 196505735.5 | H6: =SUM(F6:G6) -> 217925735.5 | I6: 2143571.153 | J6: 0.009836246043
A7: MIDWEST | B7: 28 | C7: 9 | D7: 15 | E7: 52 | F7: 980000 | G7: 3361129 | H7: 4341129 | I7: 45892.70566 | J7: 0.01057160606
A8: NAVAJO | B8: 3 | C8: 580 | D8: 270 | E8: 853 | F8: 105000 | G8: 107255975 | H8: 107360975 | I8: 979613.0063 | J8: 0.009124479415
A9: NORTHWEST | B9: 61 | C9: 10 | D9: 14 | E9: 85 | F9: 2135000 | G9: 3044937 | H9: 5179937 | I9: 63800.85406 | J9: 0.01231691699
A10: PACIFIC | B10: 215 | C10: 228 | D10: 287 | E10: 730 | F10: 7525000 | G10: 79122621.5 | H10: 86647621.5 | I10: 792365.7022 | J10: 0.009144690743
A11: ROCKY MOUNTAIN | B11: 693 | C11: 154 | D11: 11 | E11: 858 | F11: 24255000 | G11: 19936396 | H11: 44191396 | I11: 595465.5684 | J11: 0.01347469468
A12: SOUTHERN PLAINS | B12: 401 | C12: 135 | D12: 20 | E12: 556 | F12: 14035000 | G12: 15888828.5 | H12: 29923828.5 | I12: 396809.5653 | J12: 0.01326065498
A13: SOUTHWEST | B13: 25 | C13: 104 | D13: 57 | E13: 186 | F13: 875000 | G13: 19266287.5 | H13: 20141287.5 | I13: 194619.795 | J13: 0.009662728612
A14: WESTERN | B14: 93 | C14: 135 | D14: 537 | E14: 765 | F14: 3255000 | G14: 79231361 | H14: 82486361 | I14: 799522.7443 | J14: 0.009692787203
A15: TOTAL | B15: =SUM(B3:B14) -> 2597 | C15: 2816 | D15: 1863 | E15: =SUM(E3:E14) -> 7276 | F15: =SUM(F3:F14) -> 93283750 | G15: =SUM(G3:G14) -> 664127806 | H15: 757411556 | I15: 7304827 | J15: 0.009644462039

Sheet 2016Data
A1: 2016 Estimated Total Need in # of Applicants and Associated Cost
A2: Item | B2: # of Eligible Cat A | C2: # of Eligible Cat B | D2: # of Eligible Cat C-1 | E2: # of Eligible Cat C-2 | F2: # of Eligible Applicants | G2: Cost of Cat B Need | H2: Cost of Cat C Need | I2: Total Estimate of Need | J2: 2017 REGION DISTR AMT REGION | K2: Percentage of Funding to Need | L2: 0.05 | M2: 0.1 | N2: 0.075 | O2: =L2*I15 -> 35758275.7 | P2: =N2*I15 -> 53637413.55 | Q2: =M2*I15 -> 71516551.4
A3: ALASKA | B3: 23 | C3: 272 | D3: 419 | E3: 362 | F3: =SUM(B3:E3) -> 1076 | G3: 11900000 | H3: 190366248 | I3: =SUM(G3:H3) -> 202266248 | J3: 1582255.487 | K3: =J3/I3 -> 0.007822637253
A4: EASTERN OKLAHOMA | B4: 20 | C4: 96 | D4: 5 | E4: 0 | F4: =SUM(B4:E4) -> 121 | G4: 1920000 | H4: 562562 | I4: =SUM(G4:H4) -> 2482562 | J4: 85760.29951 | K4: =J4/I4 -> 0.03454507864
A5: EASTERN | B5: 0 | C5: 55 | D5: 1 | E5: 0 | F5: 56 | G5: 3300000 | H5: 165273 | I5: 3465273 | J5: 40511.39963 | K5: 0.01169068054
A6: GREAT PLAINS | B6: 0 | C6: 741 | D6: 965 | E6: 228 | F6: 1934 | G6: 44460000 | H6: 153713008 | I6: 198173008 | J6: 1940732.802 | K6: 0.009793123805
A7: MIDWEST | B7: 4 | C7: 8 | D7: 7 | E7: 11 | F7: 30 | G7: 280000 | H7: 3650795 | I7: 3930795 | J7: 32780.77624 | K7: 0.008339477445
A8: NAVAJO | B8: 0 | C8: 9 | D8: 487 | E8: 289 | F8: 785 | G8: 540000 | H8: 36467031.5 | I8: 37007031.5 | J8: 967019.2077 | K8: 0.02613068837
A9: NORTHWEST | B9: 0 | C9: 20 | D9: 3 | E9: 2 | F9: 25 | G9: 376564.5 | H9: 225788 | I9: 602352.5 | J9: 17117.96247 | K9: 0.0284185132
A10: PACIFIC | B10: 0 | C10: 297 | D10: 259 | E10: 308 | F10: 864 | G10: 17820000 | H10: 87825152 | I10: 105645152 | J10: 1005231.44 | K10: 0.009515168669
A11: ROCKY MOUNTAIN | B11: 5 | C11: 334 | D11: 35 | E11: 9 | F11: 383 | G11: 20040000 | H11: 5300485 | I11: 25340485 | J11: 295871.6241 | K11: 0.01167584694
A12: SOUTHERN PLAINS | B12: 0 | C12: 355 | D12: 127 | E12: 20 | F12: 502 | G12: 12600000 | H12: 15173329 | I12: 27773329 | J12: 417560.9844 | K12: 0.01503460332
A13: SOUTHWEST | B13: 0 | C13: 44 | D13: 15 | E13: 14 | F13: 73 | G13: 2640000 | H13: 3562680 | I13: =SUM(G13:H13) -> 6202680 | J13: 66909.48248 | K13: 0.01078718916
A14: WESTERN | B14: 1 | C14: 140 | D14: 118 | E14: 616 | F14: 875 | G14: 8400000 | H14: 93876598 | I14: 102276598 | J14: 1016309.534 | K14: 0.009936872698
A15: TOTAL | B15: =SUM(B3:B14) -> 53 | C15: 2371 | D15: 2441 | E15: 1859 | F15: =SUM(F3:F14) -> 6724 | G15: =SUM(G3:G14) -> 124276564.5 | H15: =SUM(H3:H14) -> 590888949.5 | I15: 715165514 | J15: 7304827 | K15: 0.0102141768

Sheet 2017Data
A1: 2017 Estimated Total Need in # of Applicants and Associated Cost
A2: Item | B2: Eligible Cat A | C2: Eligible Cat B | D2: Eligible Cat C-1 | E2: Eligible Cat C-2 | F2: Eligible Applicants | G2: Cost of Cat A & B Need | H2: Cost of Cat C Need | I2: Total Estimate of Need | J2: 2017 REGION DISTR AMT REGION | K2: Percentage of Funding to Need | L2: 0.05 | M2: 0.1 | N2: 0.075 | O2: =L2*I15 -> 42791677.5 | P2: =N2*I15 -> 64187516.25 | Q2: =M2*I15 -> 85583355
A3: ALASKA | B3: 9 | C3: 175 | D3: 402 | E3: 303 | F3: =SUM(B3:E3) -> 889 | G3: 13215000 | H3: 199068603 | I3: =SUM(G3:H3) -> 212283603 | J3: 1735939 | K3: =J3/I3 -> 0.008177452123
A4: EASTERN OKLAHOMA | B4: 1 | C4: 49 | D4: 3 | E4: 1 | F4: =SUM(B4:E4) -> 54 | G4: 2947500 | H4: 788674 | I4: =SUM(G4:H4) -> 3736174 | J4: 43847 | K4: =J4/I4 -> 0.01173580245
A5: EASTERN | B5: 0 | C5: 67 | D5: 6 | E5: 4 | F5: 77 | G5: 4020000 | H5: 2098082 | I5: 6118082 | J5: 64814 | K5: 0.01059384297
A6: GREAT PLAINS | B6: 0 | C6: 749 | D6: 912 | E6: 97 | F6: 1758 | G6: 44940000 | H6: 232604669 | I6: 277544669 | J6: 1879404 | K6: 0.006771537017
A7: MIDWEST | B7: 5 | C7: 49 | D7: 20 | E7: 22 | F7: 96 | G7: 2977500 | H7: 6419173 | I7: 9396673 | J7: 104542 | K7: 0.01112542705
A8: NAVAJO | B8: 1 | C8: 8 | D8: 377 | E8: 344 | F8: 730 | G8: 487500 | H8: 90978304 | I8: 91465804 | J8: 990253 | K8: 0.01082648331
A9: NORTHWEST | B9: 1 | C9: 12 | D9: 5 | E9: 0 | F9: 18 | G9: 22500 | H9: 706115 | I9: 728615 | J9: 15143 | K9: 0.02078326688
A10: PACIFIC | B10: 0 | C10: 323 | D10: 250 | E10: 311 | F10: 884 | G10: 19380000 | H10: 85897013 | I10: 105277013 | J10: 1094655 | K10: 0.0103978539
A11: ROCKY MOUNTAIN | B11: 1 | C11: 444 | D11: 83 | E11: 8 | F11: 536 | G11: 26647500 | H11: 11209399 | I11: 37856899 | J11: 470586 | K11: 0.01243065366
A12: SOUTHERN PLAINS | B12: 0 | C12: 353 | D12: 128 | E12: 20 | F12: 501 | G12: 21180000 | H12: 30346658 | I12: 51526658 | J12: 455685 | K12: 0.008843674666
A13: SOUTHWEST | B13: 0 | C13: 27 | D13: 24 | E13: 28 | F13: 79 | G13: 1620000 | H13: 12667486 | I13: =SUM(G13:H13) -> 14287486 | J13: 89718 | K13: 0.006279481219
A14: WESTERN | B14: 0 | C14: 142 | D14: 70 | E14: 241 | F14: 453 | G14: 8550000 | H14: 37061874 | I14: 45611874 | J14: 519722 | K14: 0.01139444523
A15: TOTAL | B15: =SUM(B3:B14) -> 18 | C15: 2398 | D15: 2280 | E15: 1379 | F15: =SUM(F3:F14) -> 6075 | G15: =SUM(G3:G14) -> 145987500 | H15: =SUM(H3:H14) -> 709846050 | I15: 855833550 | J15: =SUM(J3:J14) -> 7464308 | K15: 0.008721681921

Sheet 2018Data
A1: 2018 Estimated Total Need in # of Applicants and Associated Cost
A2: Item | B2: Eligible Cat A | C2: Eligible Cat B | D2: Eligible Cat C-1 | E2: Eligible Cat C-2 | F2: Eligible Applicants | G2: Cost of Cat A & B Need | H2: Cost of Cat C Need | I2: Total Estimate of Need | J2: 2018 REGION DISTR AMT TO REGION | K2: Percentage of Funding to Need | L2: 0.05 | M2: 0.1 | N2: 0.075 | O2: =L2*I15 -> 45345731.3 | P2: =N2*I15 -> 68018596.95 | Q2: =M2*I15 -> 90691462.6
A3: ALASKA | B3: 0 | C3: 285 | D3: 377 | E3: 862 | F3: =SUM(B3:E3) -> 1524 | G3: 21375000 | H3: 347243380 | I3: =SUM(G3:H3) -> 368618380 | J3: 2426454 | K3: =J3/I3 -> 0.006582563789
A4: EASTERN OKLAHOMA | B4: 6 | C4: 89 | D4: 2 | E4: 0 | F4: =SUM(B4:E4) -> 97 | G4: 5385000 | H4: 195822 | I4: =SUM(G4:H4) -> 5580822 | J4: 64276 | K4: =J4/I4 -> 0.01151729978
A5: EASTERN | B5: 22 | C5: 29 | D5: 2 | E5: 3 | F5: 56 | G5: 2506357 | H5: 821679 | I5: 3328036 | J5: 36593 | K5: 0.01099537385
A6: GREAT PLAINS | B6: 0 | C6: 808 | D6: 1003 | E6: 66 | F6: 1877 | G6: 48480000 | H6: 123270905 | I6: 171750905 | J6: 1659022 | K6: 0.009659465841
A7: MIDWEST | B7: 1 | C7: 50 | D7: 13 | E7: 7 | F7: 71 | G7: 3007500 | H7: 3073010 | I7: 6080510 | J7: 58209 | K7: 0.009573045682
A8: NAVAJO | B8: 0 | C8: 1 | D8: 495 | E8: 376 | F8: 872 | G8: 60000 | H8: 109905829 | I8: 109965829 | J8: 958404 | K8: 0.008715471058
A9: NORTHWEST | B9: 4 | C9: 0 | D9: 19 | E9: 6 | F9: 29 | G9: 90000 | H9: 3197036 | I9: 3287036 | J9: 29929 | K9: 0.009105163436
A10: PACIFIC | B10: 1 | C10: 286 | D10: 248 | E10: 334 | F10: 869 | G10: 17167500 | H10: 85746657 | I10: 102914157 | J10: 885428 | K10: 0.008603558789
A11: ROCKY MOUNTAIN | B11: 1 | C11: 495 | D11: 52 | E11: 6 | F11: 554 | G11: 29707500 | H11: 7001921 | I11: 36709421 | J11: 391374 | K11: 0.01066140487
A12: SOUTHERN PLAINS | B12: 0 | C12: 368 | D12: 126 | E12: 21 | F12: 515 | G12: 22080000 | H12: 15081010 | I12: 37161010 | J12: 390143 | K12: 0.01049871895
A13: SOUTHWEST | B13: 0 | C13: 26 | D13: 27 | E13: 28 | F13: 81 | G13: 1560000 | H13: 6691585 | I13: =SUM(G13:H13) -> 8251585 | J13: 76606 | K13: 0.009283792144
A14: WESTERN | B14: 1 | C14: 183 | D14: 61 | E14: 301 | F14: 546 | G14: 10987500 | H14: 42279435 | I14: 53266935 | J14: 507068 | K14: 0.009519376326
A15: TOTAL | B15: =SUM(B3:B14) -> 36 | C15: 2620 | D15: 2425 | E15: 2010 | F15: =SUM(F3:F14) -> 7091 | G15: =SUM(G3:G14) -> 162406357 | H15: =SUM(H3:H14) -> 744508269 | I15: 906914626 | J15: =SUM(J3:J14) -> 7483506 | K15: 0.008251610224

Sheet 2019Data
A1: 2019 Estimated Total Need in # of Applicants and Associated Cost
A2: Item | B2: Eligible Cat A | C2: Eligible Cat B | D2: Eligible Cat C-1 | E2: Eligible Cat C-2 | F2: Eligible Applicants | G2: Cost of Cat A & B Need | H2: Cost of Cat C Need | I2: Total Estimate of Need | J2: 2019 REGION DISTR AMT TO REGION | K2: Percentage of Funding to Need | L2: 0.05 | M2: 0.1 | N2: 0.075 | O2: =L2*I15 -> 50516955.3 | P2: =N2*I15 -> 75775432.95 | Q2: =M2*I15 -> 101033910.6
A3: ALASKA | B3: 6 | C3: 214 | D3: 481 | E3: 1016 | F3: =SUM(B3:E3) -> 1717 | G3: 16110000 | H3: 420847981 | I3: =SUM(G3:H3) -> 436957981 | J3: 2905715 | K3: =J3/I3 -> 0.006649872817
A4: EASTERN OKLAHOMA | B4: 1 | C4: 41 | D4: 0 | E4: 0 | F4: 42 | G4: 827500 | H4: 0 | I4: =SUM(G4:H4) -> 827500 | J4: 30253 | K4: =J4/I4 -> 0.03655951662
A5: EASTERN | B5: 21 | C5: 25 | D5: 3 | E5: 2 | F5: 51 | G5: 1657500 | H5: 889900 | I5: 2547400 | J5: 37578 | K5: 0.01475151134
A6: GREAT PLAINS | B6: 0 | C6: 950 | D6: 1083 | E6: 63 | F6: 2096 | G6: 57000000 | H6: 166632322 | I6: 223632322 | J6: 1946726 | K6: 0.008705029678
A7: MIDWEST | B7: 0 | C7: 38 | D7: 3 | E7: 2 | F7: 43 | G7: 2280000 | H7: 822517 | I7: 3102517 | J7: 31407 | K7: 0.01012307104
A8: NAVAJO | B8: 0 | C8: 4 | D8: 511 | E8: 309 | F8: 824 | G8: 240000 | H8: 127680970 | I8: 127920970 | J8: 943603 | K8: 0.007376452821
A9: NORTHWEST | B9: 0 | C9: 30 | D9: 25 | E9: 6 | F9: 61 | G9: 1800000 | H9: 5033233 | I9: 6833233 | J9: 58232 | K9: 0.008521881224
A10: PACIFIC | B10: 3 | C10: 124 | D10: 72 | E10: 148 | F10: 347 | G10: 7462500 | H10: 84458429 | I10: 91920929 | J10: 406966 | K10: 0.00442734864
A11: ROCKY MOUNTAIN | B11: 3 | C11: 62 | D11: 28 | E11: 2 | F11: 95 | G11: 3742500 | H11: 4554453 | I11: 8296953 | J11: 83686 | K11: 0.01008635339
A12: SOUTHERN PLAINS | B12: 0 | C12: 353 | D12: 128 | E12: 20 | F12: 501 | G12: 21180000 | H12: 19995637 | I12: 41175637 | J12: 430850 | K12: 0.01046371183
A13: SOUTHWEST | B13: 0 | C13: 36 | D13: 14 | E13: 31 | F13: 81 | G13: 2160000 | H13: 6771057 | I13: =SUM(G13:H13) -> 8931057 | J13: 82422 | K13: 0.009228694879
A14: WESTERN | B14: 2 | C14: 140 | D14: 79 | E14: 248 | F14: 469 | G14: 8415000 | H14: 49777607 | I14: 58192607 | J14: 514560 | K14: 0.008842360336
A15: TOTAL | B15: =SUM(B3:B14) -> 36 | C15: 2017 | D15: 2427 | E15: 1847 | F15: =SUM(F3:F14) -> 6327 | G15: =SUM(G3:G14) -> 122875000 | H15: =SUM(H3:H14) -> 887464106 | I15: 1010339106 | J15: =SUM(J3:J14) -> 7471998 | K15: 0.007395534782

Sheet Milestones 14-15 (hidden)
A1: Workload Data | B1: FY 2014 | D1: Greenbook Targets | E1: Percent of Eligible Households Served | F1: FY 2015 | H1: Greenbook Targets | I1: Percent of Eligible Households Served
A2: Targets | B2: 8000000 | D2: Estimate | E2: Actual | F2: 8009000 | H2: Estimate | I2: Actual
A4: Renovations | D4: 75 | E4: =C29 -> 34 | G4: 45 | H4: 75 | I4: =G29 -> 44
A5: Replacement | D5: 40 | E5: =D29 -> 50 | G5: 42 | H5: 40 | I5: =H29 -> 42
A6: New Units | D6: 40 | E6: =E29 -> 15 | G6: 13 | H6: 40 | I6: =I29 -> 13
A7: Total Households Served | D7: =SUM(D4:D6) -> 155 | E7: =E30 -> 99 | G7: =SUM(G4:G6) -> 100 | H7: =SUM(H4:H6) -> 155 | I7: =IF(I30=0,"0",I30) -> 99
A8: Percentage Targets
A9: Renovations | C9: =B47 -> 2549 | D9: =D4/C9 -> 0.02942330326 | E9: =E4/C9 -> 0.01333856414 | G9: 2594 | H9: =H4/G9 -> 0.02891287587 | I9: =I4/G9 -> 0.01696222051
A10: Replacement | C10: =C47 -> 3045 | D10: =D5/C10 -> 0.013136289 | E10: =E5/C10 -> 0.01642036125 | G10: 2816 | H10: =H5/G10 -> 0.01420454545 | I10: =I5/G10 -> 0.01491477273
A11: New Units | C11: =D47 -> 1473 | D11: =D6/C11 -> 0.02715546504 | E11: =E6/C11 -> 0.01018329939 | G11: 1863 | H11: =H6/G11 -> 0.02147074611 | I11: =I6/G11 -> 0.006977992485
A12: Total Households Served | C12: =SUM(C9:C11) -> 7067 | D12: =D7/C12 -> 0.02193292769 | E12: =E7/C12 -> 0.01400877317 | G12: =SUM(G9:G11) -> 7273 | H12: =H7/G12 -> 0.02131170081 | I12: =I7/G12 -> 0.01361198955
B14: FY 2014 | F14: FY 2015
A16: Region | B16: # of Eligible Households | C16: # of Eligible Households Category B Served | D16: # of Eligible Households Category C-1 Served | E16: # of Eligible Households Category C-2 Served | F16: # of Eligible Households | G16: # of Eligible Households Category B Served | H16: # of Eligible Households Category C-1 Served | I16: # of Eligible Households Category C-2 Served
A17: ALASKA | B17: 1112 | C17: 2 | D17: 7 | E17: 1 | F17: 812 | G17: 0 | H17: 5 | I17: 1
A18: EASTERN OKLAHOMA | B18: 107 | C18: 0 | D18: 1 | E18: 0 | F18: 69 | G18: 2 | H18: 0 | I18: 0
A19: EASTERN | B19: 165 | C19: 5 | D19: 1 | E19: 0 | F19: 161 | G19: 7 | H19: 0 | I19: 0
A20: GREAT PLAINS | B20: 1656 | C20: 4 | D20: 25 | E20: 4 | F20: 2149 | G20: 13 | H20: 21 | I20: 5
A21: MIDWEST | B21: 122 | C21: 8 | D21: 0 | E21: 0 | F21: 52 | G21: 2 | H21: 0 | I21: 0
A22: NAVAJO | B22: 804 | C22: 0 | D22: 6 | E22: 1 | F22: 853 | G22: 0 | H22: 8 | I22: 0
A23: NORTHWEST | B23: 37 | C23: 3 | D23: 0 | E23: 0 | F23: 85 | G23: 2 | H23: 0 | I23: 0
A24: PACIFIC | B24: 742 | C24: 1 | D24: 3 | E24: 2 | F24: 730 | G24: 3 | H24: 3 | I24: 2
A25: ROCKY MOUNTAIN | B25: 728 | C25: 5 | D25: 0 | E25: 3 | F25: 858 | G25: 8 | H25: 1 | I25: 1
A26: SOUTHERN PLAINS | B26: 539 | C26: 1 | D26: 3 | E26: 0 | F26: 556 | G26: 3 | H26: 2 | I26: 0
A27: SOUTHWEST | B27: 186 | C27: 0 | D27: 1 | E27: 1 | F27: 186 | G27: 2 | H27: 0 | I27: 0
A28: WESTERN | B28: 834 | C28: 5 | D28: 3 | E28: 3 | F28: 765 | G28: 2 | H28: 2 | I28: 4
A29: TOTAL | B29: =SUM(B17:B28) -> 7032 | C29: =SUM(C17:C28) -> 34 | D29: =SUM(D17:D28) -> 50 | E29: 15 | F29: =SUM(F17:F28) -> 7276 | G29: =SUM(G17:G28) -> 44 | H29: =SUM(H17:H28) -> 42 | I29: =SUM(I17:I28) -> 13
E30: =SUM(C29:E29) -> 99 | I30: =SUM(G29:J29) -> 99
B32: 2014 Percent | F32: 2015 Percent
A34: Region | B34: # of Eligible Applicants Cat B | C34: # of Eligible Applicants Cat C-1 | D34: # of Eligible Applicants Cat C-2 | E34: Total | F34: # of Eligible Applicants Cat B | G34: # of Eligible Applicants Cat C-1 | H34: # of Eligible Applicants Cat C-2 | I34: Total
A35: ALASKA | B35: 351 | C35: 588 | D35: 173 | E35: =SUM(B35:D35) -> 1112 | F35: 273 | G35: 312 | H35: 227 | I35: =SUM(F35:H35) -> 812
A36: EASTERN OKLAHOMA | B36: 94 | C36: 13 | D36: 0 | E36: =SUM(B36:D36) -> 107 | F36: 64 | G36: 5 | H36: 0 | I36: =SUM(F36:H36) -> 69
A37: EASTERN | B37: 157 | C37: 4 | D37: 4 | E37: 165 | F37: 129 | G37: 16 | H37: 16 | I37: 161
A38: GREAT PLAINS | B38: 488 | C38: 1003 | D38: 165 | E38: 1656 | F38: 612 | G38: 1128 | H38: 409 | I38: 2149
A39: MIDWEST | B39: 122 | C39: 40 | D39: 30 | E39: 192 | F39: 28 | G39: 9 | H39: 15 | I39: 52
A40: NAVAJO | B40: 0 | C40: 525 | D40: 179 | E40: 704 | F40: 3 | G40: 580 | H40: 270 | I40: 853
A41: NORTHWEST | B41: 23 | C41: 14 | D41: 0 | E41: 37 | F41: 61 | G41: 10 | H41: 14 | I41: 85
A42: PACIFIC | B42: 189 | C42: 343 | D42: 210 | E42: 742 | F42: 215 | G42: 228 | H42: 287 | I42: 730
A43: ROCKY MOUNTAIN | B43: 555 | C43: 155 | D43: 18 | E43: 728 | F43: 693 | G43: 154 | H43: 11 | I43: 858
A44: SOUTHERN PLAINS | B44: 390 | C44: 133 | D44: 16 | E44: 539 | F44: 401 | G44: 135 | H44: 20 | I44: 556
A45: SOUTHWEST | B45: 90 | C45: 104 | D45: 57 | E45: 251 | F45: 25 | G45: 104 | H45: 57 | I45: 186
A46: WESTERN | B46: 90 | C46: 123 | D46: 621 | E46: 834 | F46: 93 | G46: 135 | H46: 537 | I46: 765
A47: TOTAL | B47: =SUM(B35:B46) -> 2549 | C47: =SUM(C35:C46) -> 3045 | D47: =SUM(D35:D46) -> 1473 | E47: =SUM(B47:D47) -> 7067 | F47: =SUM(F35:F46) -> 2597 | G47: =SUM(G35:G46) -> 2816 | H47: =SUM(H35:H46) -> 1863 | I47: =SUM(F47:H47) -> 7276

Sheet Milestones 14-17 (hidden)
A1: Workload Data | B1: FY 2014 | D1: Greenbook Targets | E1: Percent of Eligible Households Served | F1: FY 2015 | H1: Greenbook Targets | I1: Percent of Eligible Households Served | J1: FY 2016 | L1: Greenbook Targets | M1: Percent of Eligible Households Served | N1: FY 2017 | P1: Greenbook Targets | R1: Percent of Eligible Households Served
A2: Targets | B2: 8000000 | D2: Estimate | E2: Actual | F2: 8009000 | H2: Estimate | I2: Actual | J2: 8021000 | L2: Estimate | M2: Actual | N2: 8021000 | P2: Estimate | R2: Actual
A4: Renovations | D4: 75 | E4: =C31 -> 34 | G4: 45 | H4: 75 | I4: =G31 -> 44 | K4: 45 | L4: 75 | M4: =K31 -> 45 | O4: 31 | P4: 75 | R4: =O31 -> 31 | T4: =O4/R4 -> 1
A5: Replacement | D5: 40 | E5: =D31 -> 50 | G5: 42 | H5: 40 | I5: =H31 -> 42 | K5: 42 | L5: 40 | M5: =L31 -> 42 | O5: 24 | P5: 40 | R5: =P31 -> 24
A6: New Units | D6: 40 | E6: =E31 -> 15 | G6: 13 | H6: 40 | I6: =I31 -> 13 | K6: 13 | L6: 40 | M6: =M31 -> 13 | O6: 12 | P6: 40 | R6: =R31 -> 24
A7: Downpayment | O7: 24 | P7: 24 | R7: =R32 -> 91
A8: Total Households Served | D8: =SUM(D4:D6) -> 155 | E8: =E32 -> 99 | G8: =SUM(G4:G6) -> 100 | H8: =SUM(H4:H6) -> 155 | I8: =IF(I32=0,"0",I32) -> 99 | K8: =SUM(K4:K6) -> 100 | L8: =SUM(L4:L6) -> 155 | M8: =IF(M32=0,"0",M32) -> 100 | O8: =SUM(O4:O7) -> 91 | P8: 90 | R8: =IF(R32=0,"0",R32) -> 91
A9: Percentage Targets
A10: Renovations | C10: =B49 -> 2549 | D10: =D4/C10 -> 0.02942330326 | E10: =E4/C10 -> 0.01333856414 | G10: 2594 | H10: =H4/G10 -> 0.02891287587 | I10: =I4/G10 -> 0.01696222051 | K10: 2594 | L10: =L4/K10 -> 0.02891287587 | M10: =M4/K10 -> 0.01734772552 | O10: 2398 | P10: =P4/O10 -> 0.03127606339 | R10: =R4/O10 -> 0.01292743953
A11: Replacement | C11: =C49 -> 3045 | D11: =D5/C11 -> 0.013136289 | E11: =E5/C11 -> 0.01642036125 | G11: 2816 | H11: =H5/G11 -> 0.01420454545 | I11: =I5/G11 -> 0.01491477273 | K11: 2816 | L11: =L5/K11 -> 0.01420454545 | M11: =M5/K11 -> 0.01491477273 | O11: 2280 | P11: =P5/O11 -> 0.01754385965 | R11: =R5/O11 -> 0.01052631579
A12: New Units | C12: =D49 -> 1473 | D12: =D6/C12 -> 0.02715546504 | E12: =E6/C12 -> 0.01018329939 | G12: 1863 | H12: =H6/G12 -> 0.02147074611 | I12: =I6/G12 -> 0.006977992485 | K12: 1863 | L12: =L6/K12 -> 0.02147074611 | M12: =M6/K12 -> 0.006977992485 | O12: 1379 | P12: =P6/O12 -> 0.02900652647 | R12: =R6/O12 -> 0.01740391588
A13: Downpayment
A14: Total Households Served | C14: =SUM(C10:C12) -> 7067 | D14: =D8/C14 -> 0.02193292769 | E14: =E8/C14 -> 0.01400877317 | G14: =SUM(G10:G12) -> 7273 | H14: =H8/G14 -> 0.02131170081 | I14: =I8/G14 -> 0.01361198955 | K14: =SUM(K10:K12) -> 7273 | L14: =L8/K14 -> 0.02131170081 | M14: =M8/K14 -> 0.01374948439 | O14: 6057 | P14: =P8/O14 -> 0.01485884101 | R14: =R8/O14 -> 0.01502393924
B16: FY 2014 | F16: FY 2015 | J16: FY 2016 | N16: FY 2017
A18: Region | B18: # of Eligible Households | C18: # of Eligible Households Category B Served | D18: # of Eligible Households Category C-1 Served | E18: # of Eligible Households Category C-2 Served | F18: # of Eligible Households | G18: # of Eligible Households Category B Served | H18: # of Eligible Households Category C-1 Served | I18: # of Eligible Households Category C-2 Served | J18: # of Eligible Households | K18: # of Eligible Households Category B Served | L18: # of Eligible Households Category C-1 Served | M18: # of Eligible Households Category C-2 Served | N18: # of Eligible Households | O18: # of Eligible Households Category B Served | P18: # of Eligible Households Category C-1 Served | Q18: # of Eligible Households Category C-2 Served | R18: # of Eligible Households Category D Served
A19: ALASKA | B19: 1112 | C19: 2 | D19: 7 | E19: 1 | F19: 812 | G19: 0 | H19: 5 | I19: 1 | J19: 812 | K19: 1 | L19: 5 | M19: 1 | N19: 889 | O19: 5 | P19: 1 | Q19: 3 | R19: 10 | S19: ALASKA
A20: EASTERN OKLAHOMA | B20: 107 | C20: 0 | D20: 1 | E20: 0 | F20: 69 | G20: 2 | H20: 0 | I20: 0 | J20: 69 | K20: 2 | L20: 0 | M20: 0 | N20: 54 | O20: 1 | P20: 0 | Q20: 0 | R20: 0 | S20: EASTERN OKLAHOMA
A21: EASTERN | B21: 165 | C21: 5 | D21: 1 | E21: 0 | F21: 161 | G21: 7 | H21: 0 | I21: 0 | J21: 161 | K21: 7 | L21: 0 | M21: 0 | N21: 77 | O21: 0 | P21: 0 | Q21: 0 | R21: 0 | S21: EASTERN
A22: GREAT PLAINS | B22: 1656 | C22: 4 | D22: 25 | E22: 4 | F22: 2149 | G22: 13 | H22: 21 | I22: 5 | J22: 2149 | K22: 13 | L22: 21 | M22: 5 | N22: 1758 | O22: 9 | P22: 7 | Q22: 3 | R22: 14 | S22: GREAT PLAINS
A23: MIDWEST | B23: 122 | C23: 8 | D23: 0 | E23: 0 | F23: 52 | G23: 2 | H23: 0 | I23: 0 | J23: 52 | K23: 2 | L23: 0 | M23: 0 | N23: 96 | O23: 2 | P23: 0 | Q23: 0 | R23: 0 | S23: MIDWEST
A24: NAVAJO | B24: 804 | C24: 0 | D24: 6 | E24: 1 | F24: 850 | G24: 0 | H24: 8 | I24: 0 | J24: 850 | K24: 0 | L24: 8 | M24: 0 | N24: 730 | O24: 0 | P24: 9 | Q24: 2 | R24: 0 | S24: NAVAJO
A25: NORTHWEST | B25: 37 | C25: 3 | D25: 0 | E25: 0 | F25: 85 | G25: 2 | H25: 0 | I25: 0 | J25: 85 | K25: 2 | L25: 0 | M25: 0 | N25: 18 | O25: 1 | P25: 0 | Q25: 0 | R25: 0 | S25: NORTHWEST
A26: PACIFIC | B26: 742 | C26: 1 | D26: 3 | E26: 2 | F26: 730 | G26: 3 | H26: 3 | I26: 2 | J26: 730 | K26: 3 | L26: 3 | M26: 2 | N26: 884 | O26: 3 | P26: 3 | Q26: 3 | R26: 0 | S26: PACIFIC
A27: ROCKY MOUNTAIN | B27: 728 | C27: 5 | D27: 0 | E27: 3 | F27: 858 | G27: 8 | H27: 1 | I27: 1 | J27: 858 | K27: 8 | L27: 1 | M27: 1 | N27: 536 | O27: 0 | P27: 0 | Q27: 0 | R27: 0 | S27: ROCKY MOUNTAIN
A28: SOUTHERN PLAINS | B28: 539 | C28: 1 | D28: 3 | E28: 0 | F28: 556 | G28: 3 | H28: 2 | I28: 0 | J28: 556 | K28: 3 | L28: 2 | M28: 0 | N28: 501 | O28: 1 | P28: 2 | Q28: 1 | R28: 0 | S28: SOUTHERN PLAINS
A29: SOUTHWEST | B29: 186 | C29: 0 | D29: 1 | E29: 1 | F29: 186 | G29: 2 | H29: 0 | I29: 0 | J29: 186 | K29: 2 | L29: 0 | M29: 0 | N29: 79 | O29: 3 | P29: 0 | Q29: 0 | R29: 0 | S29: SOUTHWEST
A30: WESTERN | B30: 834 | C30: 5 | D30: 3 | E30: 3 | F30: 765 | G30: 2 | H30: 2 | I30: 4 | J30: 765 | K30: 2 | L30: 2 | M30: 4 | N30: 453 | O30: 6 | P30: 2 | Q30: 0 | R30: 0 | S30: WESTERN
A31: TOTAL | B31: =SUM(B19:B30) -> 7032 | C31: =SUM(C19:C30) -> 34 | D31: =SUM(D19:D30) -> 50 | E31: 15 | F31: 7273 | G31: 44 | H31: 42 | I31: 13 | J31: 7273 | K31: 45 | L31: 42 | M31: 13 | N31: 6075 | O31: 31 | P31: =SUM(P19:P30) -> 24 | Q31: =SUM(Q19:Q30) -> 12 | R31: 24 | S31: TOTAL
E32: =SUM(C31:E31) -> 99 | I32: =SUM(G31:I31) -> 99 | M32: =SUM(K31:M31) -> 100 | R32: =SUM(O31:S31) -> 91
B34: 2014 Percent | F34: 2015 Percent | J34: 2016 Percent | N34: 2017 Percent
A36: Region | B36: # of Eligible Applicants Cat B | C36: # of Eligible Applicants Cat C-1 | D36: # of Eligible Applicants Cat C-2 | E36: Total | F36: # of Eligible Applicants Cat B | G36: # of Eligible Applicants Cat C-1 | H36: # of Eligible Applicants Cat C-2 | I36: Total | J36: # of Eligible Applicants Cat B | K36: # of Eligible Applicants Cat C-1 | L36: # of Eligible Applicants Cat C-2 | M36: Total | N36: # of Eligible Applicants Cat B | O36: # of Eligible Applicants Cat C-1 | P36: # of Eligible Applicants Cat C-2 | Q36: # of Eligible Applicants Cat D | R36: Total
A37: ALASKA | B37: 351 | C37: 588 | D37: 173 | E37: =SUM(B37:D37) -> 1112 | F37: 273 | G37: 312 | H37: 227 | I37: =SUM(F37:H37) -> 812 | J37: 273 | K37: 312 | L37: 227 | M37: =SUM(J37:L37) -> 812 | N37: 175 | O37: 402 | P37: 303 | Q37: 0 | R37: =SUM(N37:Q37) -> 880 | S37: ALASKA
A38: EASTERN OKLAHOMA | B38: 94 | C38: 13 | D38: 0 | E38: =SUM(B38:D38) -> 107 | F38: 64 | G38: 5 | H38: 0 | I38: =SUM(F38:H38) -> 69 | J38: 64 | K38: 5 | L38: 0 | M38: =SUM(J38:L38) -> 69 | N38: 49 | O38: 3 | P38: 1 | Q38: 0 | R38: 53 | S38: EASTERN OKLAHOMA
A39: EASTERN | B39: 157 | C39: 4 | D39: 4 | E39: 165 | F39: 129 | G39: 16 | H39: 16 | I39: 161 | J39: 129 | K39: 16 | L39: 16 | M39: 161 | N39: 67 | O39: 6 | P39: 4 | Q39: 0 | R39: 77 | S39: EASTERN
A40: GREAT PLAINS | B40: 488 | C40: 1003 | D40: 165 | E40: 1656 | F40: 612 | G40: 1128 | H40: 409 | I40: 2149 | J40: 612 | K40: 1128 | L40: 409 | M40: 2149 | N40: 749 | O40: 912 | P40: 97 | Q40: 0 | R40: 1758 | S40: GREAT PLAINS
A41: MIDWEST | B41: 122 | C41: 40 | D41: 30 | E41: 192 | F41: 28 | G41: 9 | H41: 15 | I41: 52 | J41: 28 | K41: 9 | L41: 15 | M41: 52 | N41: 49 | O41: 20 | P41: 22 | Q41: 0 | R41: 91 | S41: MIDWEST
A42: NAVAJO | B42: 0 | C42: 525 | D42: 179 | E42: 704 | F42: 0 | G42: 580 | H42: 270 | I42: 850 | J42: 0 | K42: 580 | L42: 270 | M42: 850 | N42: 8 | O42: 377 | P42: 344 | Q42: 0 | R42: 729 | S42: NAVAJO
A43: NORTHWEST | B43: 23 | C43: 14 | D43: 0 | E43: 37 | F43: 61 | G43: 10 | H43: 14 | I43: 85 | J43: 61 | K43: 10 | L43: 14 | M43: 85 | N43: 12 | O43: 5 | P43: 0 | Q43: 0 | R43: 17 | S43: NORTHWEST
A44: PACIFIC | B44: 189 | C44: 343 | D44: 210 | E44: 742 | F44: 215 | G44: 228 | H44: 287 | I44: 730 | J44: 215 | K44: 228 | L44: 287 | M44: 730 | N44: 323 | O44: 250 | P44: 311 | Q44: 0 | R44: 884 | S44: PACIFIC
A45: ROCKY MOUNTAIN | B45: 555 | C45: 155 | D45: 18 | E45: 728 | F45: 693 | G45: 154 | H45: 11 | I45: 858 | J45: 693 | K45: 154 | L45: 11 | M45: 858 | N45: 444 | O45: 83 | P45: 8 | Q45: 0 | R45: 535 | S45: ROCKY MOUNTAIN
A46: SOUTHERN PLAINS | B46: 390 | C46: 133 | D46: 16 | E46: 539 | F46: 401 | G46: 135 | H46: 20 | I46: 556 | J46: 401 | K46: 135 | L46: 20 | M46: 556 | N46: 353 | O46: 128 | P46: 20 | Q46: 0 | R46: 501 | S46: SOUTHERN PLAINS
A47: SOUTHWEST | B47: 90 | C47: 104 | D47: 57 | E47: 251 | F47: 25 | G47: 104 | H47: 57 | I47: 186 | J47: 25 | K47: 104 | L47: 57 | M47: 186 | N47: 27 | O47: 24 | P47: 28 | Q47: 0 | R47: 79 | S47: SOUTHWEST
A48: WESTERN | B48: 90 | C48: 123 | D48: 621 | E48: 834 | F48: 93 | G48: 135 | H48: 537 | I48: 765 | J48: 93 | K48: 135 | L48: 537 | M48: 765 | N48: 142 | O48: 70 | P48: 241 | Q48: 0 | R48: 453 | S48: WESTERN
A49: TOTAL | B49: =SUM(B37:B48) -> 2549 | C49: =SUM(C37:C48) -> 3045 | D49: =SUM(D37:D48) -> 1473 | E49: =SUM(B49:D49) -> 7067 | F49: =SUM(F37:F48) -> 2594 | G49: =SUM(G37:G48) -> 2816 | H49: =SUM(H37:H48) -> 1863 | I49: =SUM(F49:H49) -> 7273 | J49: =SUM(J37:J48) -> 2594 | K49: =SUM(K37:K48) -> 2816 | L49: =SUM(L37:L48) -> 1863 | M49: =SUM(J49:L49) -> 7273 | N49: =SUM(N37:N48) -> 2398 | O49: =SUM(O37:O48) -> 2280 | P49: =SUM(P37:P48) -> 1379 | Q49: =SUM(Q37:Q48) -> 0 | R49: =SUM(N49:P49) -> 6057 | S49: TOTAL

Sheet Milestones 15-16 (hidden)
A1: Workload Data | B1: FY 2015 | D1: Greenbook Targets | E1: Percent of Eligible Households Served | F1: FY 2016 | I1: Greenbook Targets | J1: Percent of Eligible Households Served
A2: Targets | B2: 8009000 | D2: Estimate | E2: Actual | F2: Targets | G2: 8021000 | J2: Estimate | K2: Actual
A4: Temporary | F4: Temporary
A5: Renovations | C5: 45 | D5: 75 | E5: =C30 -> 44 | F5: Renovations | I5: 45 | J5: 45 | K5: =H30 -> 37
A6: Replacement | C6: 42 | D6: 40 | E6: =D30 -> 42 | F6: Replacements | I6: 42 | J6: 42 | K6: =I30 -> 25
A7: New Units | C7: 13 | D7: 40 | E7: =E30 -> 13 | F7: New Units | I7: 13 | J7: 13 | K7: =J30 -> 12
A8: Total Households Served | C8: =SUM(C5:C7) -> 100 | D8: =SUM(D5:D7) -> 155 | E8: =IF(E31=0,"0",E31) -> 99 | F8: Total Households Served | I8: =SUM(I5:I7) -> 100 | J8: =SUM(J5:J7) -> 100 | K8: =IF(K31=0,"0",K31) -> 91
A9: Percentage Targets | F9: Percentage Targets
A10: Renovations | C10: 2594 | D10: =D5/C10 -> 0.02891287587 | E10: =E5/C10 -> 0.01696222051 | F10: Renovations | I10: 2594 | J10: 2594 | K10: =K5/J10 -> 0.01426368543
A11: Replacement | C11: 2816 | D11: =D6/C11 -> 0.01420454545 | E11: =E6/C11 -> 0.01491477273 | F11: Replacements | I11: 2816 | J11: 2816 | K11: =K6/J11 -> 0.008877840909
A12: New Units | C12: 1863 | D12: =D7/C12 -> 0.02147074611 | E12: =E7/C12 -> 0.006977992485 | F12: New Units | I12: 1863 | J12: 1863 | K12: =K7/J12 -> 0.006441223833
A13: Total Households Served | C13: =SUM(C10:C12) -> 7273 | D13: =D8/C13 -> 0.02131170081 | E13: =E8/C13 -> 0.01361198955 | F13: Total Households Served | I13: =SUM(I10:I12) -> 7273 | J13: =SUM(J10:J12) -> 7273 | K13: =K8/J13 -> 0.0125120308
B15: FY 2015 | F15: FY 2016
A17: Region | B17: # of Eligible Households | C17: # of Eligible Household Category B Served | D17: # of Eligible Household Category C-1 Served | E17: # of Eligible Household Category C-2 Served | F17: # of Eligible Households | G17: # of Household Category A Served | H17: # of Household Category B Served | I17: # of Household Category C-1 Served | J17: # of Household Category C-2 Served | K17: # of Household Category D Served
A18: ALASKA | B18: 812 | C18: 0 | D18: 5 | E18: 1 | F18: 1026 | G18: 1 | H18: 3 | I18: 6 | J18: 0 | K18: 3
A19: EASTERN OKLAHOMA | B19: 69 | C19: 2 | D19: 0 | E19: 0 | F19: 101 | G19: 0 | H19: 2 | I19: 0 | J19: 0 | K19: 0
A20: EASTERN | B20: 161 | C20: 7 | D20: 0 | E20: 0 | F20: 56 | G20: 0 | H20: 0 | I20: 0 | J20: 0 | K20: 0
A21: GREAT PLAINS | B21: 2149 | C21: 13 | D21: 21 | E21: 5 | F21: 1934 | G21: 0 | H21: 10 | I21: 10 | J21: 1 | K21: 13
A22: MIDWEST | B22: 52 | C22: 2 | D22: 0 | E22: 0 | F22: 26 | G22: 0 | H22: 1 | I22: 0 | J22: 0 | K22: 0
A23: NAVAJO | B23: 853 | C23: 0 | D23: 8 | E23: 0 | F23: 785 | G23: 0 | H23: 0 | I23: 3 | J23: 4 | K23: 0
A24: NORTHWEST | B24: 85 | C24: 2 | D24: 0 | E24: 0 | F24: 25 | G24: 0 | H24: 1 | I24: 0 | J24: 0 | K24: 0
A25: PACIFIC | B25: 730 | C25: 3 | D25: 3 | E25: 2 | F25: 864 | G25: 0 | H25: 10 | I25: 1 | J25: 3 | K25: 0
A26: ROCKY MOUNTAIN | B26: 858 | C26: 8 | D26: 1 | E26: 1 | F26: 378 | G26: 0 | H26: 4 | I26: 0 | J26: 0 | K26: 0
A27: SOUTHERN PLAINS | B27: 556 | C27: 3 | D27: 2 | E27: 0 | F27: 452 | G27: 0 | H27: 3 | I27: 2 | J27: 0 | K27: 0
A28: SOUTHWEST | B28: 186 | C28: 2 | D28: 0 | E28: 0 | F28: 73 | G28: 0 | H28: 1 | I28: 0 | J28: 0 | K28: 0
A29: WESTERN | B29: 765 | C29: 2 | D29: 2 | E29: 4 | F29: 874 | G29: 0 | H29: 2 | I29: 3 | J29: 4 | K29: 0
A30: TOTAL | B30: =SUM(B18:B29) -> 7276 | C30: =SUM(C18:C29) -> 44 | D30: =SUM(D18:D29) -> 42 | E30: =SUM(E18:E29) -> 13 | F30: =SUM(F18:F29) -> 6594 | G30: =SUM(G18:G29) -> 1 | H30: 37 | I30: 25 | J30: 12 | K30: 16
E31: =SUM(C30:E30) -> 99 | K31: =SUM(G30:K30) -> 91
B33: 2015 Percent | F33: 2016 Percent
A35: Region | B35: # of Eligible Applicants Cat B | C35: # of Eligible Applicants Cat C-1 | D35: # of Eligible Applicants Cat C-2 | E35: Total | F35: # of Eligible Applicants Cat A | G35: # of Eligible Applicants Cat B | H35: # of Eligible Applicants Cat C-1 | I35: # of Eligible Applicants Cat C-2 | J35: # of Eligible Applicants Cat D | K35: Total
A36: ALASKA | B36: 273 | C36: 312 | D36: 227 | E36: =SUM(B36:D36) -> 812 | F36: 23 | G36: 272 | H36: 419 | I36: 335 | K36: =SUM(F36:J36) -> 1049
A37: EASTERN OKLAHOMA | B37: 64 | C37: 5 | D37: 0 | E37: =SUM(B37:D37) -> 69 | F37: 20 | G37: 96 | H37: 5 | I37: 0 | K37: =SUM(F37:J37) -> 121
A38: EASTERN | B38: 129 | C38: 16 | D38: 16 | E38: 161 | F38: 0 | G38: 55 | H38: 1 | I38: 0 | K38: 56
A39: GREAT PLAINS | B39: 612 | C39: 1128 | D39: 409 | E39: 2149 | F39: 0 | G39: 741 | H39: 965 | I39: 228 | K39: 1934
A40: MIDWEST | B40: 28 | C40: 9 | D40: 15 | E40: 52 | F40: 4 | G40: 8 | H40: 7 | I40: 11 | K40: 30
A41: NAVAJO | B41: 3 | C41: 580 | D41: 270 | E41: 853 | F41: 0 | G41: 9 | H41: 487 | I41: 289 | K41: 785
A42: NORTHWEST | B42: 61 | C42: 10 | D42: 14 | E42: 85 | F42: 0 | G42: 20 | H42: 3 | I42: 2 | K42: 25
A43: PACIFIC | B43: 215 | C43: 228 | D43: 287 | E43: 730 | F43: 0 | G43: 297 | H43: 259 | I43: 308 | K43: 864
A44: ROCKY MOUNTAIN | B44: 693 | C44: 154 | D44: 11 | E44: 858 | F44: 5 | G44: 334 | H44: 35 | I44: 9 | K44: 383
A45: SOUTHERN PLAINS | B45: 401 | C45: 135 | D45: 20 | E45: 556 | F45: 0 | G45: 305 | H45: 127 | I45: 20 | K45: 452
A46: SOUTHWEST | B46: 25 | C46: 104 | D46: 57 | E46: 186 | F46: 0 | G46: 44 | H46: 15 | I46: 14 | K46: 73
A47: WESTERN | B47: 93 | C47: 135 | D47: 537 | E47: 765 | F47: 1 | G47: 140 | H47: 118 | I47: 616 | K47: 875
A48: TOTAL | B48: =SUM(B36:B47) -> 2597 | C48: =SUM(C36:C47) -> 2816 | D48: =SUM(D36:D47) -> 1863 | E48: =SUM(B48:D48) -> 7276 | F48: =SUM(F36:F47) -> 53 | G48: =SUM(G36:G47) -> 2321 | H48: =SUM(H36:H47) -> 2441 | I48: =SUM(I36:I47) -> 1832 | K48: =SUM(F48:J48) -> 6647

Sheet Milestones 18-19
A1: Workload Data | B1: FY 2014 | D1: Greenbook Targets | E1: Percent of Eligible Households Served | F1: FY 2015 | H1: Greenbook Targets | I1: Percent of Eligible Households Served | J1: FY 2016 | L1: Greenbook Targets | M1: Percent of Eligible Households Served | N1: FY 2017 | P1: Greenbook Targets | R1: Percent of Eligible Households Served | S1: FY 2018 | U1: Greenbook Targets | W1: Percent of Eligible Households Served | X1: FY 2019 | Z1: Greenbook Targets | AB1: Percent of Eligible Households Served
A2: Targets | B2: 8000000 | D2: Estimate | E2: Actual | F2: 8009000 | H2: Estimate | I2: Actual | J2: 8021000 | L2: Estimate | M2: Actual | N2: 8021000 | P2: Estimate | R2: Actual | S2: 8021000 | U2: Estimate | W2: Actual | X2: 8021000 | Z2: Estimate | AB2: Actual
A4: Renovations | D4: 75 | E4: =C31 -> 34 | G4: 45 | H4: 75 | I4: =G31 -> 45 | K4: 45 | L4: 75 | M4: =K31 -> 47 | O4: 31 | P4: 75 | R4: =O31 -> 31 | T4: 34 | U4: 75 | W4: =T31 -> 34 | Y4: 34 | Z4: 75 | AB4: =Y31 -> 22
A5: Replacement | D5: 40 | E5: =D31 -> 50 | G5: 42 | H5: 40 | I5: =H31 -> 42 | K5: 42 | L5: 40 | M5: =L31 -> 27 | O5: 24 | P5: 40 | R5: =P31 -> 24 | T5: 16 | U5: 40 | W5: =U31 -> 16 | Y5: 16 | Z5: 40 | AB5: =Z31 -> 22
A6: New Units | D6: 40 | E6: =E31 -> 15 | G6: 13 | H6: 40 | I6: =I31 -> 13 | K6: 13 | L6: 40 | M6: =M31 -> 21 | O6: 12 | P6: 40 | R6: =R31 -> 24 | T6: 21 | U6: 40 | W6: =W31 -> 16 | Y6: 21 | Z6: 40 | AB6: =AB31 -> 35
A7: Downpayment | O7: 24 | P7: 24 | R7: =R32 -> 13680 | T7: 16 | U7: 24 | W7: =W32 -> 6509 | Y7: 16 | Z7: 24 | AB7: =AB32 -> 0
A8: Total Households Served | D8: =SUM(D4:D6) -> 155 | E8: =E32 -> 99 | G8: =SUM(G4:G6) -> 100 | H8: =SUM(H4:H6) -> 155 | I8: =IF(I32=0,"0",I32) -> 100 | K8: =SUM(K4:K6) -> 100 | L8: =SUM(L4:L6) -> 155 | M8: =IF(M32=0,"0",M32) -> 95 | O8: =SUM(O4:O7) -> 91 | P8: 90 | R8: =IF(R32=0,"0",R32) -> 13680 | T8: =SUM(T4:T7) -> 87 | U8: 90 | W8: =IF(W32=0,"0",W32) -> 6509 | Y8: =SUM(Y4:Y7) -> 87 | Z8: 90 | AB8: =IF(AB32=0,"0",AB32) -> 0
A9: Percentage Targets
A10: Renovations | C10: =B49 -> 2549 | D10: =D4/C10 -> 0.02942330326 | E10: =E4/C10 -> 0.01333856414 | G10: 2594 | H10: =H4/G10 -> 0.02891287587 | I10: =I4/G10 -> 0.01734772552 | K10: 2411 | L10: =L4/K10 -> 0.03110742431 | M10: =M4/K10 -> 0.0194939859 | O10: 2398 | P10: =P4/O10 -> 0.03127606339 | R10: =R4/O10 -> 0.01292743953 | T10: 2698 | U10: =U4/T10 -> 0.02779836916 | W10: =W4/T10 -> 0.01260192735 | Y10: 2698 | Z10: =Z4/Y10 -> 0.02779836916 | AB10: =AB4/Y10 -> 0.008154188288
A11: Replacement | C11: =C49 -> 3045 | D11: =D5/C11 -> 0.013136289 | E11: =E5/C11 -> 0.01642036125 | G11: 2816 | H11: =H5/G11 -> 0.01420454545 | I11: =I5/G11 -> 0.01491477273 | K11: 2454 | L11: =L5/K11 -> 0.0162999185 | M11: =M5/K11 -> 0.01100244499 | O11: 2280 | P11: =P5/O11 -> 0.01754385965 | R11: =R5/O11 -> 0.01052631579 | T11: 2470 | U11: =U5/T11 -> 0.01619433198 | W11: =W5/T11 -> 0.006477732794 | Y11: 2470 | Z11: =Z5/Y11 -> 0.01619433198 | AB11: =AB5/Y11 -> 0.008906882591
A12: New Units | C12: =D49 -> 1473 | D12: =D6/C12 -> 0.02715546504 | E12: =E6/C12 -> 0.01018329939 | G12: 1863 | H12: =H6/G12 -> 0.02147074611 | I12: =I6/G12 -> 0.006977992485 | K12: 1874 | L12: =L6/K12 -> 0.02134471718 | M12: =M6/K12 -> 0.01120597652 | O12: 1379 | P12: =P6/O12 -> 0.02900652647 | R12: =R6/O12 -> 0.01740391588 | T12: 2008 | U12: =U6/T12 -> 0.01992031873 | W12: =W6/T12 -> 0.00796812749 | Y12: 2008 | Z12: =Z6/Y12 -> 0.01992031873 | AB12: =AB6/Y12 -> 0.01743027888
A13: Downpayment
A14: Total Households Served | C14: =SUM(C10:C12) -> 7067 | D14: =D8/C14 -> 0.02193292769 | E14: =E8/C14 -> 0.01400877317 | G14: =SUM(G10:G12) -> 7273 | H14: =H8/G14 -> 0.02131170081 | I14: =I8/G14 -> 0.01374948439 | K14: 6739 | L14: =L8/K14 -> 0.02300044517 | M14: =M8/K14 -> 0.01409704704 | O14: =SUM(O10:O12) -> 6057 | P14: =P8/O14 -> 0.01485884101 | R14: =R8/O14 -> 2.258543834 | T14: 7176 | U14: =U8/T14 -> 0.01254180602 | W14: =W8/T14 -> 0.9070512821 | Y14: 7176 | Z14: =Z8/Y14 -> 0.01254180602 | AB14: =AB8/Y14 -> 0
B16: FY 2014 | F16: FY 2015 | J16: FY 2016 | N16: FY 2017 | S16: FY 2018 | X16: FY 2019
A18: Region | B18: # of Eligible Households | C18: # of Eligible Households Category B Served | D18: # of Eligible Households Category C-1 Served | E18: # of Eligible Households Category C-2 Served | F18: # of Eligible Households | G18: # of Eligible Households Category B Served | H18: # of Eligible Households Category C-1 Served | I18: # of Eligible Households Category C-2 Served | J18: # of Eligible Households | K18: # of Eligible Households Category B Served | L18: # of Eligible Households Category C-1 Served | M18: # of Eligible Households Category C-2 Served | N18: # of Eligible Households | O18: # of Eligible Households Category B Served | P18: # of Eligible Households Category C-1 Served | Q18: # of Eligible Households Category C-2 Served | R18: # of Eligible Households Category D Served | S18: # of Eligible Households | T18: # of Eligible Households Category B Served | U18: # of Eligible Households Category C-1 Served | V18: # of Eligible Households Category C-2 Served | W18: # of Eligible Households Category D Served | X18: # of Eligible Households | Y18: # of Eligible Households Category B Served | Z18: # of Eligible Households Category C-1 Served | AA18: # of Eligible Households Category C-2 Served | AB18: # of Eligible Households Category D Served
A19: ALASKA | B19: 1112 | C19: 2 | D19: 7 | E19: 1 | F19: 812 | G19: 1 | H19: 5 | I19: 1 | J19: 1076 | K19: 4 | L19: 6 | M19: 0 | N19: 889 | O19: 5 | P19: 1 | Q19: 3 | R19: 10 | S19: 1524 | T19: 8 | U19: 5 | V19: 4 | W19: 6 | X19: 1717 | Y19: 2 | Z19: 6 | AA19: 8 | AB19: 7 | AD19: ALASKA
A20: EASTERN OKLAHOMA | B20: 107 | C20: 0 | D20: 1 | E20: 0 | F20: 69 | G20: 2 | H20: 0 | I20: 0 | J20: 121 | K20: 2 | L20: 0 | M20: 0 | N20: 54 | O20: 1 | P20: 0 | Q20: 0 | R20: 0 | S20: 59 | T20: 0 | U20: 0 | V20: 0 | W20: 0 | X20: 42 | Y20: 1 | Z20: 0 | AA20: 0 | AB20: 0 | AD20: EASTERN OKLAHOMA
A21: EASTERN | B21: 165 | C21: 5 | D21: 1 | E21: 0 | F21: 161 | G21: 7 | H21: 0 | I21: 0 | J21: 56 | K21: 7 | L21: 0 | M21: 0 | N21: 77 | O21: 0 | P21: 0 | Q21: 0 | R21: 0 | S21: 97 | T21: 1 | U21: 0 | V21: 0 | W21: 0 | X21: 51 | Y21: 0 | Z21: 0 | AA21: 0 | AB21: 0 | AD21: EASTERN
A22: GREAT PLAINS | B22: 1656 | C22: 4 | D22: 25 | E22: 4 | F22: 2149 | G22: 13 | H22: 21 | I22: 5 | J22: 1934 | K22: 10 | L22: 11 | M22: 13 | N22: 1758 | O22: 9 | P22: 7 | Q22: 3 | R22: 14 | S22: 1901 | T22: 6 | U22: 7 | V22: 3 | W22: 10 | X22: 2096 | Y22: 8 | Z22: 5 | AA22: 5 | AB22: 28 | AD22: GREAT PLAINS
A23: MIDWEST | B23: 122 | C23: 8 | D23: 0 | E23: 0 | F23: 52 | G23: 2 | H23: 0 | I23: 0 | J23: 30 | K23: 1 | L23: 0 | M23: 0 | N23: 96 | O23: 2 | P23: 0 | Q23: 0 | R23: 0 | S23: 71 | T23: 3 | U23: 0 | V23: 0 | W23: 0 | X23: 41 | Y23: 1 | Z23: 0 | AA23: 0 | AB23: 0 | AD23: MIDWEST
A24: NAVAJO | B24: 804 | C24: 0 | D24: 6 | E24: 1 | F24: 850 | G24: 0 | H24: 8 | I24: 0 | J24: 785 | K24: 3 | L24: 4 | M24: 0 | N24: 730 | O24: 0 | P24: 9 | Q24: 2 | R24: 0 | S24: 872 | T24: 0 | U24: 0 | V24: 6 | W24: 0 | X24: 824 | Y24: 0 | Z24: 4 | AA24: 3 | AB24: 0 | AD24: NAVAJO
A25: NORTHWEST | B25: 37 | C25: 3 | D25: 0 | E25: 0 | F25: 85 | G25: 2 | H25: 0 | I25: 0 | J25: 25 | K25: 1 | L25: 0 | M25: 0 | N25: 18 | O25: 1 | P25: 0 | Q25: 0 | R25: 0 | S25: 29 | T25: 1 | U25: 0 | V25: 0 | W25: 0 | X25: 61 | Y25: 1 | Z25: 0 | AA25: 0 | AB25: 0 | AD25: NORTHWEST
A26: PACIFIC | B26: 742 | C26: 1 | D26: 3 | E26: 2 | F26: 730 | G26: 3 | H26: 3 | I26: 2 | J26: 864 | K26: 10 | L26: 1 | M26: 3 | N26: 884 | O26: 3 | P26: 3 | Q26: 3 | R26: 0 | S26: 929 | T26: 3 | U26: 2 | V26: 3 | W26: 0 | X26: 347 | Y26: 2 | Z26: 2 | AA26: 0 | AB26: 0 | AD26: PACIFIC
A27: ROCKY MOUNTAIN | B27: 728 | C27: 5 | D27: 0 | E27: 3 | F27: 858 | G27: 8 | H27: 1 | I27: 1 | J27: 384 | K27: 4 | L27: 0 | M27: 0 | N27: 536 | O27: 0 | P27: 0 | Q27: 0 | R27: 0 | S27: 554 | T27: 6 | U27: 0 | V27: 0 | W27: 0 | X27: 94 | Y27: 6 | Z27: 0 | AA27: 0 | AB27: 0 | AD27: ROCKY MOUNTAIN
A28: SOUTHERN PLAINS | B28: 539 | C28: 1 | D28: 3 | E28: 0 | F28: 556 | G28: 3 | H28: 2 | I28: 0 | J28: 508 | K28: 3 | L28: 2 | M28: 0 | N28: 501 | O28: 1 | P28: 2 | Q28: 1 | R28: 0 | S28: 515 | T28: 0 | U28: 1 | V28: 2 | W28: 0 | X28: 501 | Y28: 0 | Z28: 3 | AA28: 0 | AB28: 0 | AD28: SOUTHERN PLAINS
A29: SOUTHWEST | B29: 186 | C29: 0 | D29: 1 | E29: 1 | F29: 186 | G29: 2 | H29: 0 | I29: 0 | J29: 81 | K29: 0 | L29: 0 | M29: 1 | N29: 79 | O29: 3 | P29: 0 | Q29: 0 | R29: 0 | S29: 81 | T29: 1 | U29: 0 | V29: 1 | W29: 0 | X29: 81 | Y29: 1 | Z29: 0 | AA29: 1 | AB29: 0 | AD29: SOUTHWEST
A30: WESTERN | B30: 834 | C30: 5 | D30: 3 | E30: 3 | F30: 765 | G30: 2 | H30: 2 | I30: 4 | J30: 875 | K30: 2 | L30: 3 | M30: 4 | N30: 453 | O30: 6 | P30: 2 | Q30: 0 | R30: 0 | S30: 546 | T30: 5 | U30: 1 | V30: 2 | W30: 0 | X30: 469 | Y30: 0 | Z30: 2 | AA30: 2 | AB30: 0 | AD30: WESTERN
A31: TOTAL | B31: =SUM(B19:B30) -> 7032 | C31: =SUM(C19:C30) -> 34 | D31: =SUM(D19:D30) -> 50 | E31: 15 | F31: 7273 | G31: 45 | H31: 42 | I31: 13 | J31: 6739 | K31: 47 | L31: 27 | M31: 21 | N31: 6075 | O31: 31 | P31: =SUM(P19:P30) -> 24 | Q31: =SUM(Q19:Q30) -> 12 | R31: 24 | S31: =SUM(S19:S30) -> 7178 | T31: =SUM(T19:T30) -> 34 | U31: =SUM(U19:U30) -> 16 | V31: =SUM(V19:V30) -> 21 | W31: =SUM(W19:W30) -> 16 | X31: =SUM(X19:X30) -> 6324 | Y31: =SUM(Y19:Y30) -> 22 | Z31: =SUM(Z19:Z30) -> 22 | AA31: =SUM(AA19:AA30) -> 19 | AB31: =SUM(AB19:AB30) -> 35
E32: =SUM(C31:E31) -> 99 | I32: =SUM(G31:I31) -> 100 | M32: =SUM(K31:M31) -> 95 | R32: =SUM(O31:X31) -> 13680 | W32: =SUM(T31:AC31) -> 6509
B34: 2014 Percent | F34: 2015 Percent | J34: 2016 Percent | N34: 2017 Percent | S34: 2018 Percent | X34: 2019 Percent
A36: Region | B36: # of Eligible Applicants Cat B | C36: # of Eligible Applicants Cat C-1 | D36: # of Eligible Applicants Cat C-2 | E36: Total | F36: # of Eligible Applicants Cat B | G36: # of Eligible Applicants Cat C-1 | H36: # of Eligible Applicants Cat C-2 | I36: Total | J36: # of Eligible Applicants Cat B | K36: # of Eligible Applicants Cat C-1 | L36: # of Eligible Applicants Cat C-2 | M36: Total | N36: # of Eligible Applicants Cat B | O36: # of Eligible Applicants Cat C-1 | P36: # of Eligible Applicants Cat C-2 | Q36: # of Eligible Applicants Cat D | R36: Total | S36: # of Eligible Applicants Cat B | T36: # of Eligible Applicants Cat C-1 | U36: # of Eligible Applicants Cat C-2 | V36: # of Eligible Applicants Cat D | W36: Total | X36: # of Eligible Applicants Cat B | Y36: # of Eligible Applicants Cat C-1 | Z36: # of Eligible Applicants Cat C-2 | AA36: # of Eligible Applicants Cat D | AB36: Total
A37: ALASKA | B37: 351 | C37: 588 | D37: 173 | E37: =SUM(B37:D37) -> 1112 | F37: 273 | G37: 312 | H37: 227 | I37: =SUM(F37:H37) -> 812 | J37: 295 | K37: 419 | L37: 362 | M37: =SUM(J37:L37) -> 1076 | N37: 175 | O37: 402 | P37: 303 | Q37: 0 | R37: =SUM(N37:Q37) -> 880 | S37: 285 | T37: 377 | U37: 862 | V37: 0 | W37: =SUM(S37:V37) -> 1524 | X37: 220 | Y37: 481 | Z37: 1016 | AA37: 0 | AB37: =SUM(X37:AA37) -> 1717 | AD37: ALASKA
A38: EASTERN OKLAHOMA | B38: 94 | C38: 13 | D38: 0 | E38: =SUM(B38:D38) -> 107 | F38: 64 | G38: 5 | H38: 0 | I38: =SUM(F38:H38) -> 69 | J38: 116 | K38: 5 | L38: 0 | M38: =SUM(J38:L38) -> 121 | N38: 49 | O38: 3 | P38: 1 | Q38: 0 | R38: 53 | S38: 54 | T38: 2 | U38: 3 | V38: 0 | W38: 59 | X38: 42 | Y38: 0 | Z38: 0 | AA38: 0 | AB38: 42 | AD38: EASTERN OKLAHOMA
A39: EASTERN | B39: 157 | C39: 4 | D39: 4 | E39: 165 | F39: 129 | G39: 16 | H39: 16 | I39: 161 | J39: 55 | K39: 1 | L39: 0 | M39: 56 | N39: 67 | O39: 6 | P39: 4 | Q39: 0 | R39: 77 | S39: 95 | T39: 2 | U39: 0 | V39: 0 | W39: 97 | X39: 46 | Y39: 3 | Z39: 2 | AA39: 0 | AB39: 51 | AD39: EASTERN
A40: GREAT PLAINS | B40: 488 | C40: 1003 | D40: 165 | E40: 1656 | F40: 612 | G40: 1128 | H40: 409 | I40: 2149 | J40: 741 | K40: 965 | L40: 228 | M40: 1934 | N40: 749 | O40: 912 | P40: 97 | Q40: 0 | R40: 1758 | S40: 823 | T40: 1013 | U40: 65 | V40: 0 | W40: 1901 | X40: 950 | Y40: 1083 | Z40: 63 | AA40: 0 | AB40: 2096 | AD40: GREAT PLAINS
A41: MIDWEST | B41: 122 | C41: 40 | D41: 30 | E41: 192 | F41: 28 | G41: 9 | H41: 15 | I41: 52 | J41: 12 | K41: 7 | L41: 11 | M41: 30 | N41: 49 | O41: 20 | P41: 22 | Q41: 0 | R41: 91 | S41: 51 | T41: 13 | U41: 7 | V41: 0 | W41: 71 | X41: 38 | Y41: 2 | Z41: 1 | AA41: 0 | AB41: 41 | AD41: MIDWEST
A42: NAVAJO | B42: 0 | C42: 525 | D42: 179 | E42: 704 | F42: 0 | G42: 580 | H42: 270 | I42: 850 | J42: 9 | K42: 487 | L42: 289 | M42: 785 | N42: 8 | O42: 377 | P42: 344 | Q42: 0 | R42: 729 | S42: 1 | T42: 495 | U42: 376 | V42: 0 | W42: 872 | X42: 4 | Y42: 511 | Z42: 309 | AA42: 0 | AB42: 824 | AD42: NAVAJO
A43: NORTHWEST | B43: 23 | C43: 14 | D43: 0 | E43: 37 | F43: 61 | G43: 10 | H43: 14 | I43: 85 | J43: 20 | K43: 3 | L43: 2 | M43: 25 | N43: 12 | O43: 5 | P43: 0 | Q43: 0 | R43: 17 | S43: 4 | T43: 19 | U43: 6 | V43: 0 | W43: 29 | X43: 30 | Y43: 25 | Z43: 6 | AA43: 0 | AB43: 61 | AD43: NORTHWEST
A44: PACIFIC | B44: 189 | C44: 343 | D44: 210 | E44: 742 | F44: 215 | G44: 228 | H44: 287 | I44: 730 | J44: 297 | K44: 259 | L44: 308 | M44: 864 | N44: 323 | O44: 250 | P44: 311 | Q44: 0 | R44: 884 | S44: 311 | T44: 283 | U44: 336 | V44: 0 | W44: 930 | X44: 127 | Y44: 72 | Z44: 148 | AA44: 0 | AB44: 347 | AD44: PACIFIC
A45: ROCKY MOUNTAIN | B45: 555 | C45: 155 | D45: 18 | E45: 728 | F45: 693 | G45: 154 | H45: 11 | I45: 858 | J45: 339 | K45: 35 | L45: 10 | M45: 384 | N45: 444 | O45: 83 | P45: 8 | Q45: 0 | R45: 535 | S45: 496 | T45: 52 | U45: 6 | V45: 0 | W45: 554 | X45: 64 | Y45: 28 | Z45: 2 | AA45: 0 | AB45: 94 | AD45: ROCKY MOUNTAIN
A46: SOUTHERN PLAINS | B46: 390 | C46: 133 | D46: 16 | E46: 539 | F46: 401 | G46: 135 | H46: 20 | I46: 556 | J46: 360 | K46: 128 | L46: 20 | M46: 508 | N46: 353 | O46: 128 | P46: 20 | Q46: 0 | R46: 501 | S46: 368 | T46: 126 | U46: 21 | V46: 0 | W46: 515 | X46: 353 | Y46: 128 | Z46: 20 | AA46: 0 | AB46: 501 | AD46: SOUTHERN PLAINS
A47: SOUTHWEST | B47: 90 | C47: 104 | D47: 57 | E47: 251 | F47: 25 | G47: 104 | H47: 57 | I47: 186 | J47: 26 | K47: 27 | L47: 28 | M47: 81 | N47: 27 | O47: 24 | P47: 28 | Q47: 0 | R47: 79 | S47: 26 | T47: 27 | U47: 28 | V47: 0 | W47: 81 | X47: 36 | Y47: 18 | Z47: 27 | AA47: 0 | AB47: 81 | AD47: SOUTHWEST
A48: WESTERN | B48: 90 | C48: 123 | D48: 621 | E48: 834 | F48: 93 | G48: 135 | H48: 537 | I48: 765 | J48: 141 | K48: 118 | L48: 616 | M48: 875 | N48: 142 | O48: 70 | P48: 241 | Q48: 0 | R48: 453 | S48: 184 | T48: 61 | U48: 298 | V48: 0 | W48: 543 | X48: 142 | Y48: 79 | Z48: 248 | AA48: 0 | AB48: 469 | AD48: WESTERN
A49: TOTAL | B49: =SUM(B37:B48) -> 2549 | C49: =SUM(C37:C48) -> 3045 | D49: =SUM(D37:D48) -> 1473 | E49: =SUM(B49:D49) -> 7067 | F49: =SUM(F37:F48) -> 2594 | G49: =SUM(G37:G48) -> 2816 | H49: =SUM(H37:H48) -> 1863 | I49: =SUM(F49:H49) -> 7273 | J49: =SUM(J37:J48) -> 2411 | K49: =SUM(K37:K48) -> 2454 | L49: =SUM(L37:L48) -> 1874 | M49: =SUM(J49:L49) -> 6739 | N49: =SUM(N37:N48) -> 2398 | O49: =SUM(O37:O48) -> 2280 | P49: =SUM(P37:P48) -> 1379 | Q49: =SUM(Q37:Q48) -> 0 | R49: =SUM(N49:P49) -> 6057 | S49: =SUM(S37:S48) -> 2698 | T49: =SUM(T37:T48) -> 2470 | U49: =SUM(U37:U48) -> 2008 | V49: =SUM(V37:V48) -> 0 | W49: =SUM(S49:U49) -> 7176 | X49: =SUM(X37:X48) -> 2052 | Y49: =SUM(Y37:Y48) -> 2430 | Z49: =SUM(Z37:Z48) -> 1842 | AA49: =SUM(AA37:AA48) -> 0 | AB49: =SUM(X49:Z49) -> 6324

Sheet Milestones2 (hidden)
A1: Workload Data | C1: Greenbook Targets | D1: Percent of Eligible Households Served | F1: Greenbook Targets | G1: Percent of Eligible Households Served | I1: Greenbook Targets | J1: Percent of Eligible Households Served | L1: Greenbook Targets | M1: Percent of Eligible Households Served | O1: Greenbook Targets | P1: Percent of Eligible Households Served | R1: Greenbook Targets | S1: Percent of Eligible Households Served | U1: Greenbook Targets | V1: Percent of Eligible Households Served | Y1: Greenbook Targets | Z1: Percent of Eligible Households Served | AC1: Greenbook Targets | AD1: Percent of Eligible Households Served | AG1: Greenbook Targets | AH1: Percent of Eligible Households Served
A2: Targets | B2: FY2004 | E2: FY2005 | H2: FY 2006 | K2: FY 2007 | N2: FY 2008 | Q2: FY 2009 | T2: FY 2010 | W2: Targets | Y2: FY 2011 | AA2: Targets | AC2: FY 2012 | AE2: Targets | AG2: FY 2013
C3: Estimate | D3: Actual | F3: Estimate | G3: Actual | I3: Estimate | J3: Actual | L3: Estimate | M3: Actual | O3: Estimate | P3: Actual | R3: Estimate | S3: Actual | U3: Estimate | V3: Actual | Y3: Estimate | Z3: Actual | AC3: Estimate | AD3: Actual | AG3: Estimate | AH3: Actual
A4: Renovations | C4: 132 | D4: 104 | F4: 132 | G4: 132 | I4: 132 | J4: 86 | L4: =SUM(C4+F4+I4)/4.25 -> 93.17647059 | M4: 97 | O4: =SUM(F4+I4+L4)/4.25 -> 84.04152249 | P4: 65 | R4: =SUM(I4+L4+O4)/4.25 -> 72.75717484 | S4: 84 | U4: =SUM(L4+O4+R4)/4.25 -> 58.81768657 | V4: =U31 -> 71 | Y4: =SUM(P4+S4+V4)/4.25 -> 51.76470588 | Z4: =Y31 -> 63 | AC4: 60 | AD4: 56 | AG4: 60 | AI4: Renovations
A5: New /Replacement | C5: 298 | D5: 189 | F5: 298 | G5: 182 | I5: 298 | J5: 162 | L5: =SUM(C5+F5+I5)/4.25 -> 210.3529412 | M5: 200 | O5: =SUM(F5+I5+L5)/4.25 -> 189.7301038 | P5: 114 | R5: =SUM(I5+L5+O5)/4.25 -> 164.2548341 | S5: 82 | U5: =SUM(L5+O5+R5)/4.25 -> 132.7853833 | V5: =V31 -> 84 | Y5: =SUM(P5+S5+V5)/4.25 -> 65.88235294 | Z5: =Z31 -> 89 | AC5: 80 | AD5: 77 | AG5: 80 | AI5: New /Replacement
A6: Total Households Served | B6: Total | C6: 430 | D6: =SUM(C31:D31) -> 293 | E6: Total | F6: 430 | G6: =SUM(G4:G5) -> 314 | H6: Total | I6: 430 | J6: =SUM(J4:J5) -> 248 | K6: Total | L6: =SUM(L4:L5) -> 303.5294118 | M6: =SUM(M4:M5) -> 297 | N6: Total | O6: =SUM(O4:O5) -> 273.7716263 | P6: =SUM(P4:P5) -> 179 | Q6: Total | R6: =SUM(R4:R5) -> 237.012009 | S6: =SUM(S4:S5) -> 166 | T6: Total | U6: 170 | V6: =SUM(V4:V5) -> 155 | X6: Total | Y6: 170 | Z6: =SUM(Z4:Z5) -> 152 | AB6: Total | AC6: 140 | AD6: 133 | AF6: Total | AG6: 140 | AI6: Total Households Served
Q7: Percentage of Target
A8: Percentage Targets
A9: Renovations | B9: 2309 | C9: =C4/B9 -> 0.05716760502 | D9: =D4/B9 -> 0.04504114335 | E9: 2904 | F9: 0.04545454545 | G9: =G4/E9 -> 0.04545454545 | H9: 2649 | I9: =I4/H9 -> 0.04983012458 | J9: =J4/H9 -> 0.03246508116 | K9: =K50 -> 2175 | L9: =L4/K9 -> 0.04283975659 | M9: =M4/K9 -> 0.04459770115 | N9: =N50 -> 2473 | O9: =O4/N9 -> 0.03398363222 | P9: =P4/N9 -> 0.02628386575 | Q9: =Q50 -> 2162 | R9: =R4/Q9 -> 0.03365271732 | S9: =S4/Q9 -> 0.03885291397 | T9: =T50 -> 2303 | U9: =U4/T9 -> 0.02553959469 | V9: =V4/T9 -> 0.03082935302 | X9: =W50 -> 2810 | Y9: =Y4/X9 -> 0.01842160352 | Z9: =Z4/X9 -> 0.02241992883 | AB9: 2985 | AC9: =AC4/AB9 -> 0.02010050251 | AD9: =AD4/AB9 -> 0.01876046901 | AF9: 2989 | AG9: =AG4/AF9 -> 0.02007360321 | AH9: =AH4/AF9 -> 0
A10: New Construction | B10: 3520 | C10: =C5/B10 -> 0.08465909091 | D10: =D5/B10 -> 0.05369318182 | E10: 4055 | F10: 0.07348951911 | G10: =G5/E10 -> 0.04488286067 | H10: 4459 | I10: =I5/H10 -> 0.06683112806 | J10: =J5/H10 -> 0.03633101592 | K10: =L50 -> 4119 | L10: =L5/K10 -> 0.05106893449 | M10: =M5/K10 -> 0.04855547463 | N10: =O50 -> 4050 | O10: =O5/N10 -> 0.04684693921 | P10: =P5/N10 -> 0.02814814815 | Q10: =R50 -> 4156 | R10: =R5/Q10 -> 0.03952233737 | S10: =S5/Q10 -> 0.01973051011 | T10: =U50 -> 5032 | U10: =U5/T10 -> 0.02638819223 | V10: =V5/T10 -> 0.01669316375 | X10: =SUM(X50:Y50) -> 4515 | Y10: =Y5/X10 -> 0.01459188326 | Z10: =Z5/X10 -> 0.01971207087 | AB10: 4698 | AC10: =AC5/AB10 -> 0.01702852278 | AD10: =AD5/AB10 -> 0.01638995317 | AF10: 5287 | AG10: =AG5/AF10 -> 0.01513145451 | AH10: =AH5/AF10 -> 0
A11: Total Households Served | B11: =SUM(B9:B10) -> 5829 | C11: =C6/B11 -> 0.07376908561 | D11: =D6/B11 -> 0.05026591182 | E11: 6959 | F11: 0.06179048714 | G11: =G6/E11 -> 0.04512142549 | H11: 7108 | I11: =I6/H11 -> 0.06049521666 | J11: =J6/H11 -> 0.03489026449 | K11: =M50 -> 6294 | L11: =L6/K11 -> 0.04822520047 | M11: =M6/K11 -> 0.0471877979 | N11: =P50 -> 6523 | O11: =O6/N11 -> 0.04197020179 | P11: 0.02744136134 | Q11: =S50 -> 6318 | R11: =R6/Q11 -> 0.0375137716 | S11: 0.02627413739 | T11: =V50 -> 7335 | U11: =U6/T11 -> 0.02317655078 | V11: 0.02113156101 | X11: =Z50 -> 7325 | Y11: =Y6/X11 -> 0.02320819113 | Z11: 0.02075085324 | AB11: 7683 | AC11: =AC6/AB11 -> 0.01822204868 | AD11: 0.01731094624 | AF11: 8276 | AG11: =AG6/AF11 -> 0.01691638473 | AH11: 0
B16: FY2004 | E16: FY2005 | H16: FY2006 | K16: FY2007 | N16: FY 2008 | Q16: FY 2009 | T16: FY 2010 | W16: FY 2011 | AA16: FY 2012 | AE16: FY 2013
A18: Region | B18: # of Eligible Households | C18: # of Eligible Households Category B Served | D18: # of Eligible Households Category C Served | E18: # of Eligible Households | F18: # of Eligible Households Category B Served | G18: # of Eligible Households Category C Served | H18: # of Eligible Households | I18: # of Eligible Households Category B Served | J18: # of Eligible Households Category C Served | K18: # of Eligible Households | L18: # of Eligible Households Category B Served | M18: # of Eligible Households Category C Served | N18: # of Eligible Households | O18: # of Eligible Households Category B Served | P18: # of Eligible Households Category C Served | Q18: # of Eligible Households | R18: # of Eligible Households Category B Served | S18: # of Eligible Households Category C Served | T18: # of Eligible Households | U18: # of Eligible Households Category B Served | V18: # of Eligible Households Category C Served | W18: # of Eligible Households | Y18: # of Eligible Households Category B Served | Z18: # of Eligible Households Category C Served | AA18: # of Eligible Households | AC18: # of Eligible Households Category B Served | AD18: # of Eligible Households Category C Served | AE18: # of Eligible Households | AG18: # of Eligible Households Category B Served | AH18: # of Eligible Households Category C Served
A19: ALASKA | B19: 806 | C19: 6 | D19: 31 | E19: 987 | F19: 16 | G19: 26 | H19: 1153 | I19: 16 | J19: 16 | K19: 668 | L19: 10 | M19: 17 | N19: 1090 | O19: 7 | P19: 16 | Q19: 1269 | R19: 12 | S19: 16 | T19: 1361 | U19: 1 | V19: 16 | W19: 1451 | Y19: 8 | Z19: 16 | AA19: 1652 | AC19: 2 | AD19: 18 | AE19: 1954
A20: EASTERN OKLAHOMA | B20: 369 | C20: 13 | D20: 4 | E20: 683 | F20: 24 | G20: 6 | H20: 411 | I20: 11 | J20: 6 | K20: 346 | L20: 15 | M20: 5 | N20: 332 | O20: 8 | P20: 3 | Q20: 35 | R20: 1 | S20: 0 | T20: 65 | U20: 3 | V20: 0 | W20: 145 | Y20: 4 | Z20: 0 | AA20: 194 | AC20: 8 | AD20: 1 | AE20: 206
A21: EASTERN | B21: 50 | C21: 13 | D21: 2 | E21: 67 | F21: 19 | G21: 6 | H21: 76 | I21: 3 | J21: 2 | K21: 81 | L21: 4 | M21: 2 | N21: 75 | O21: 3 | P21: 1 | Q21: 95 | R21: 7 | S21: 1 | T21: 74 | U21: 1 | V21: 0 | W21: 68 | Y21: 7 | Z21: 0 | AA21: 105 | AC21: 10 | AD21: 0 | AE21: 106
A22: GREAT PLAINS | B22: 615 | C22: 11 | D22: 31 | E22: 779 | F22: 10 | G22: 28 | H22: 997 | I22: 11 | J22: 30 | K22: 813 | L22: 6 | M22: 34 | N22: 870 | O22: 10 | P22: 17 | Q22: 1023 | R22: 17 | S22: 12 | T22: 1279 | U22: 9 | V22: 18 | W22: 1090 | Y22: 6 | Z22: 14 | AA22: 1453 | AC22: 9 | AD22: 15 | AE22: 1875
A23: MIDWEST | B23: 462 | C23: 9 | D23: 14 | E23: 250 | F23: 12 | G23: 12 | H23: 242 | I23: 3 | J23: 7 | K23: 317 | L23: 5 | M23: 8 | N23: 423 | O23: 7 | P23: 6 | Q23: 372 | R23: 3 | S23: 6 | T23: 164 | U23: 4 | V23: 1 | W23: 304 | Y23: 1 | Z23: 4 | AA23: 307 | AC23: 5 | AD23: 1 | AE23: 335
A24: NAVAJO | B24: 633 | C24: 2 | D24: 38 | E24: 1022 | F24: 2 | G24: 31 | H24: 778 | I24: 0 | J24: 36 | K24: 626 | L24: 0 | M24: 35 | N24: 684 | O24: 1 | P24: 18 | Q24: 515 | R24: 7 | S24: 3 | T24: 583 | U24: 0 | V24: 10 | W24: 666 | Y24: 0 | Z24: 9 | AA24: 693 | AC24: 0 | AD24: 10 | AE24: 702
A25: NORTHWEST | B25: 148 | C25: 1 | D25: 3 | E25: 144 | F25: 1 | G25: 3 | H25: 160 | I25: 4 | J25: 3 | K25: 172 | L25: 1 | M25: 5 | N25: 171 | O25: 5 | P25: 1 | Q25: 252 | R25: 6 | S25: 1 | T25: 366 | U25: 11 | V25: 0 | W25: 339 | Y25: 11 | Z25: 0 | AA25: 117 | AC25: 1 | AD25: 1 | AE25: 173
A26: PACIFIC | B26: 477 | C26: 4 | D26: 10 | E26: 606 | F26: 4 | G26: 10 | H26: 702 | I26: 6 | J26: 22 | K26: 579 | L26: 1 | M26: 21 | N26: 711 | O26: 6 | P26: 12 | Q26: 847 | R26: 7 | S26: 12 | T26: 845 | U26: 8 | V26: 12 | W26: 795 | Y26: 2 | Z26: 12 | AA26: 858 | AC26: 5 | AD26: 10 | AE26: 514
A27: ROCKY MOUNTAIN | B27: 437 | C27: 22 | D27: 6 | E27: 581 | F27: 14 | G27: 10 | H27: 653 | I27: 15 | J27: 6 | K27: 750 | L27: 21 | M27: 12 | N27: 341 | O27: 10 | P27: 3 | Q27: 363 | R27: 7 | S27: 3 | T27: 509 | U27: 10 | V27: 5 | W27: 728 | Y27: 10 | Z27: 5 | AA27: 767 | AC27: 8 | AD27: 4 | AE27: 680
A28: SOUTHERN PLAINS | B28: 541 | C28: 12 | D28: 16 | E28: 486 | F28: 12 | G28: 16 | H28: 548 | I28: 19 | J28: 7 | K28: 576 | L28: 15 | M28: 11 | N28: 597 | O28: 2 | P28: 9 | Q28: 604 | R28: 3 | S28: 7 | T28: 567 | U28: 3 | V28: 6 | W28: 559 | Y28: 3 | Z28: 6 | AA28: 559 | AC28: 3 | AD28: 5 | AE28: 564
A29: SOUTHWEST | B29: 404 | C29: 5 | D29: 12 | E29: 365 | F29: 5 | G29: 12 | H29: 396 | I29: 1 | J29: 13 | K29: 376 | L29: 12 | M29: 2 | N29: 337 | O29: 2 | P29: 6 | Q29: 283 | R29: 3 | S29: 4 | T29: 228 | U29: 2 | V29: 3 | W29: 251 | Y29: 1 | Z29: 3 | AA29: 166 | AC29: 1 | AD29: 2 | AE29: 166
A30: WESTERN | B30: 887 | C30: 6 | D30: 22 | E30: 989 | F30: 13 | G30: 22 | H30: 992 | I30: 13 | J30: 30 | K30: 995 | L30: 7 | M30: 48 | N30: 892 | O30: 4 | P30: 22 | Q30: 890 | R30: 11 | S30: 17 | T30: 1127 | U30: 19 | V30: 13 | W30: 929 | Y30: 10 | Z30: 20 | AA30: 812 | AC30: 4 | AD30: 10 | AE30: 1001
A31: TOTAL | B31: 5829 | C31: 104 | D31: 189 | E31: 6959 | F31: 132 | G31: 182 | H31: 7108 | I31: =SUM(I20:I30) -> 86 | J31: =SUM(J20:J30) -> 162 | K31: =SUM(K19:K30) -> 6299 | L31: =SUM(L19:L30) -> 97 | M31: 200 | N31: 6523 | O31: 65 | P31: 114 | Q31: 6548 | R31: 84 | S31: 82 | T31: 7168 | U31: =SUM(U19:U30) -> 71 | V31: =SUM(V19:V30) -> 84 | W31: 7325 | Y31: 63 | Z31: 89 | AA31: 7683 | AC31: 56 | AD31: 77 | AE31: 8276
C32: Total Served | D32: 293 | F32: Total Served | G32: 314 | I32: Total Served | J32: =I31+J31 -> 248 | M32: =L31+M31 -> 297 | P32: =O31+P31 -> 179 | S32: =R31+S31 -> 166 | V32: =SUM(U31:V31) -> 155 | Z32: =SUM(Y31:Z31) -> 152 | AD32: 133
B35: 2004 Percent | E35: 2005 Percent | H35: 2006 Percent | K35: 2007 Percent | N35: 2008 Percent | Q35: 2009 Percent | T35: 2010 Percent | W35: 2011 Percent | AA35: 2012 Percent | AE35: 2013 Percent
A37: Region | B37: # of Eligible Applicants Cat B | C37: # of Eligible Applicants Cat C | D37: Total | E37: # of Eligible Applicants Cat B | F37: # of Eligible Applicants Cat C | G37: Total | H37: # of Eligible Applicants Cat B | I37: # of Eligible Applicants Cat C | J37: Total | K37: # of Eligible Applicants Cat B | L37: # of Eligible Applicants Cat C | M37: Total | N37: # of Eligible Applicants Cat B | O37: # of Eligible Applicants Cat C | P37: Total | Q37: # of Eligible Applicants Cat B | R37: # of Eligible Applicants Cat C | S37: Total | T37: # of Eligible Applicants Cat B | U37: # of Eligible Applicants Cat C | V37: Total | W37: # of Eligible Applicants Cat B | X37: # of Eligible Applicants Cat C-1 | Y37: # of Eligible Applicants Cat C-2 | Z37: Total | AA37: # of Eligible Applicants Cat B | AB37: # of Eligible Applicants Cat C-1 | AC37: # of Eligible Applicants Cat C-2 | AD37: Total | AE37: # of Eligible Applicants Cat B | AF37: # of Eligible Applicants Cat C-1 | AG37: # of Eligible Applicants Cat C-2 | AH37: Total
A38: ALASKA | B38: 306 | C38: 500 | D38: =SUM(B38:C38) -> 806 | E38: 342 | F38: 645 | G38: =SUM(E38:F38) -> 987 | H38: 374 | I38: 779 | J38: =SUM(H38:I38) -> 1153 | K38: 235 | L38: 433 | M38: =SUM(K38:L38) -> 668 | N38: 365 | O38: 725 | P38: =SUM(N38:O38) -> 1090 | Q38: 459 | R38: 797 | S38: =SUM(Q38:R38) -> 1256 | T38: 474 | U38: 887 | V38: =SUM(T38:U38) -> 1361 | W38: 477 | X38: 665 | Y38: 309 | Z38: =SUM(W38:Y38) -> 1451 | AA38: 536 | AB38: 781 | AC38: 335 | AD38: =SUM(AA38:AC38) -> 1652 | AE38: 590 | AF38: 954 | AG38: 410 | AH38: =SUM(AE38:AG38) -> 1954
A39: EASTERN OKLAHOMA | B39: 26 | C39: 24 | D39: =SUM(B39:C39) -> 50 | E39: 44 | F39: 23 | G39: =SUM(E39:F39) -> 67 | H39: 355 | I39: 56 | J39: =SUM(H39:I39) -> 411 | K39: 339 | L39: 7 | M39: =SUM(K39:L39) -> 346 | N39: 320 | O39: 12 | P39: =SUM(N39:O39) -> 332 | Q39: 33 | R39: 2 | S39: =SUM(Q39:R39) -> 35 | T39: 54 | U39: 11 | V39: =SUM(T39:U39) -> 65 | W39: 141 | X39: 4 | Y39: 0 | Z39: =SUM(W39:Y39) -> 145 | AA39: 78 | AB39: 10 | AC39: 17 | AD39: =SUM(AA39:AC39) -> 105 | AE39: 198 | AF39: 8 | AG39: 0 | AH39: =SUM(AE39:AG39) -> 206
A40: EASTERN | B40: 314 | C40: 55 | D40: 369 | E40: 655 | F40: 28 | G40: 683 | H40: 65 | I40: 11 | J40: 76 | K40: 71 | L40: 9 | M40: 80 | N40: 43 | O40: 32 | P40: 75 | Q40: 37 | R40: 58 | S40: 95 | T40: 44 | U40: 30 | V40: 74 | W40: 27 | X40: 37 | Y40: 4 | Z40: 68 | AA40: 194 | AB40: 0 | AC40: 0 | AD40: 194 | AE40: 74 | AF40: 24 | AG40: 8 | AH40: 106
A41: GREAT PLAINS | B41: 229 | C41: 386 | D41: 615 | E41: 270 | F41: 509 | G41: 779 | H41: 315 | I41: 682 | J41: 997 | K41: 260 | L41: 553 | M41: 813 | N41: 247 | O41: 623 | P41: 870 | Q41: 350 | R41: 677 | S41: 1027 | T41: 258 | U41: 1021 | V41: 1279 | W41: 366 | X41: 634 | Y41: 90 | Z41: 1090 | AA41: 540 | AB41: 647 | AC41: 266 | AD41: 1453 | AE41: 528 | AF41: 984 | AG41: 363 | AH41: 1875
A42: MIDWEST | B42: 136 | C42: 326 | D42: 462 | E42: 133 | F42: 117 | G42: 250 | H42: 83 | I42: 159 | J42: 242 | K42: 154 | L42: 163 | M42: 317 | N42: 191 | O42: 232 | P42: 423 | Q42: 153 | R42: 219 | S42: 372 | T42: 93 | U42: 71 | V42: 164 | W42: 218 | X42: 49 | Y42: 37 | Z42: 304 | AA42: 237 | AB42: 44 | AC42: 26 | AD42: 307 | AE42: 232 | AF42: 64 | AG42: 39 | AH42: 335
A43: NAVAJO | B43: 19 | C43: 614 | D43: 633 | E43: 21 | F43: 1001 | G43: 1022 | H43: 11 | I43: 767 | J43: 778 | K43: 2 | L43: 624 | M43: 626 | N43: 2 | O43: 682 | P43: 684 | Q43: 0 | R43: 510 | S43: 510 | T43: 0 | U43: 583 | V43: 583 | W43: 0 | X43: 350 | Y43: 316 | Z43: 666 | AA43: 0 | AB43: 364 | AC43: 329 | AD43: 693 | AE43: 0 | AF43: 469 | AG43: 233 | AH43: 702
A44: NORTHWEST | B44: 85 | C44: 63 | D44: 148 | E44: 90 | F44: 54 | G44: 144 | H44: 90 | I44: 70 | J44: 160 | K44: 102 | L44: 70 | M44: 172 | N44: 103 | O44: 68 | P44: 171 | Q44: 173 | R44: 79 | S44: 252 | T44: 231 | U44: 105 | V44: 336 | W44: 235 | X44: 77 | Y44: 27 | Z44: 339 | AA44: 50 | AB44: 59 | AC44: 8 | AD44: 117 | AE44: 89 | AF44: 64 | AG44: 20 | AH44: 173
A45: PACIFIC | B45: 100 | C45: 377 | D45: 477 | E45: 88 | F45: 518 | G45: 606 | H45: 93 | I45: 609 | J45: 702 | K45: 57 | L45: 518 | M45: 575 | N45: 104 | O45: 607 | P45: 711 | Q45: 104 | R45: 607 | S45: 711 | T45: 126 | U45: 719 | V45: 845 | W45: 147 | X45: 217 | Y45: 431 | Z45: 795 | AA45: 143 | AB45: 253 | AC45: 462 | AD45: 858 | AE45: 131 | AF45: 185 | AG45: 198 | AH45: 514
A46: ROCKY MOUNTAIN | B46: 137 | C46: 300 | D46: 437 | E46: 417 | F46: 164 | G46: 581 | H46: 466 | I46: 187 | J46: 653 | K46: 161 | L46: 589 | M46: 750 | N46: 250 | O46: 91 | P46: 341 | Q46: 224 | R46: 139 | S46: 363 | T46: 264 | U46: 245 | V46: 509 | W46: 510 | X46: 195 | Y46: 23 | Z46: 728 | AA46: 535 | AB46: 203 | AC46: 29 | AD46: 767 | AE46: 527 | AF46: 127 | AG46: 26 | AH46: 680
A47: SOUTHERN PLAINS | B47: 449 | C47: 92 | D47: 541 | E47: 391 | F47: 95 | G47: 486 | H47: 414 | I47: 134 | J47: 548 | K47: 460 | L47: 116 | M47: 576 | N47: 489 | O47: 108 | P47: 597 | Q47: 442 | R47: 162 | S47: 604 | T47: 413 | U47: 154 | V47: 567 | W47: 409 | X47: 134 | Y47: 16 | Z47: 559 | AA47: 409 | AB47: 134 | AC47: 16 | AD47: 559 | AE47: 407 | AF47: 134 | AG47: 23 | AH47: 564
A48: SOUTHWEST | B48: 182 | C48: 222 | D48: 404 | E48: 151 | F48: 214 | G48: 365 | H48: 137 | I48: 259 | J48: 396 | K48: 92 | L48: 284 | M48: 376 | N48: 135 | O48: 202 | P48: 337 | Q48: 82 | R48: 201 | S48: 283 | T48: 57 | U48: 171 | V48: 228 | W48: 58 | X48: 117 | Y48: 76 | Z48: 251 | AA48: 47 | AB48: 59 | AC48: 60 | AD48: 166 | AE48: 47 | AF48: 59 | AG48: 60 | AH48: 166
A49: WESTERN | B49: 326 | C49: 561 | D49: 887 | E49: 302 | F49: 687 | G49: 989 | H49: 246 | I49: 746 | J49: 992 | K49: 242 | L49: 753 | M49: 995 | N49: 224 | O49: 668 | P49: 892 | Q49: 105 | R49: 705 | S49: 810 | T49: 289 | U49: 1035 | V49: 1324 | W49: 222 | X49: 64 | Y49: 643 | Z49: 929 | AA49: 216 | AB49: 98 | AC49: 498 | AD49: 812 | AE49: 166 | AF49: 203 | AG49: 632 | AH49: 1001
A50: TOTAL | B50: =SUM(B38:B49) -> 2309 | C50: =SUM(C38:C49) -> 3520 | D50: =SUM(D38:D49) -> 5829 | E50: 2904 | F50: 4055 | G50: =SUM(E50:F50) -> 6959 | H50: 2649 | I50: 4459 | J50: 7108 | K50: =SUM(K38:K49) -> 2175 | L50: =SUM(L38:L49) -> 4119 | M50: 6294 | N50: =SUM(N38:N49) -> 2473 | O50: =SUM(O38:O49) -> 4050 | P50: 6523 | Q50: =SUM(Q38:Q49) -> 2162 | R50: =SUM(R38:R49) -> 4156 | S50: 6318 | T50: =SUM(T38:T49) -> 2303 | U50: =SUM(U38:U49) -> 5032 | V50: =SUM(T50:U50) -> 7335 | W50: =SUM(W38:W49) -> 2810 | X50: =SUM(X38:X49) -> 2543 | Y50: =SUM(Y38:Y49) -> 1972 | Z50: 7325 | AA50: =SUM(AA38:AA49) -> 2985 | AB50: =SUM(AB38:AB49) -> 2652 | AC50: =SUM(AC38:AC49) -> 2046 | AD50: =SUM(AD38:AD49) -> 7683 | AE50: 2989 | AF50: 3275 | AG50: 2012 | AH50: 8276
